Workbook

Sheet 記入例
B1: 勤務状況報告書
B3: 2020-04-01 | N3: 研修科名： | P3: 消化器・肝臓内科（肝臓）
B4: 規定の 出退勤時間 | D4: 出勤 | E4: 退勤
D5: 08:30:00 | E5: 17:15:00 | G5: 左記出退勤時間の内 院外・救急研修に 従事した時間 | I5: 院外・救急 勤務時間数 ※8時間以上で 休憩1時間差引済 | N5: 氏 名： | P5: 臨床 太郎
B8: 日 | C8: 曜日 | D8: 出勤・退勤時間 | F8: 勤務時間数 ※8時間以上で 休憩1時間差引済 | L8: 院外・救急 時間を除いた 残業時間 | M8: 主な超過勤務内容 (該当する業務に◯を記入)
D9: 出勤 | E9: 退勤 | G9: 出勤 | H9: 退勤 | J9: 前残業 | K9: 後残業 | M9: 病棟業務 | N9: カンファレンス | O9: レポート作成 | P9: その他の業務内容
B10: =B3 -> 2020-04-01 | C10: =B10 -> 43922 | D10: 0.3333333333 | E10: 0.71875 | F10: =IF(E10="","",IF(E10-D10<8/24,E10-D10,E10-D10-1/24)) -> 0.34375 | I10: =IF(H10="","0:00",IF(H10-G10<8/24,H10-G10,H10-G10-1/24)) -> 0:00 | J10: =IF(F10="","",IF(G10="",$D$5-D10,IF(G10<=$D$5,G10-D10,IF(G10>$D$5,$D$5-D10,IF(D10>$D$5,$D$5-D10))))) -> 0.02083333333 | K10: =IF(F10="","",IF(H10="",E10-$E$5,IF(H10<=E10,"0:00",IF(H10>$E$5,H10-$E$5))+IF(G10>=$E$5,G10-$E$5,"0:00"))) -> 0 | L10: =IF(J10="","",J10+K10) -> 0.02083333333 | P10: オリエンテーション
B11: =B10+1 -> 2020-04-02 | C11: =B11 -> 43923 | D11: 0.3541666667 | E11: 0.75 | F11: =IF(E11="","",IF(E11-D11<8/24,E11-D11,E11-D11-1/24)) -> 0.3541666667 | I11: =IF(H11="","0:00",IF(H11-G11<8/24,H11-G11,H11-G11-1/24)) -> 0:00 | J11: 0 | K11: 0.03125 | L11: =IF(J11="","",J11+K11) -> 0.03125 | P11: オリエンテーション
B12: =B11+1 -> 2020-04-03 | C12: 43924 | D12: 0.3541666667 | E12: 0.71875 | F12: 0.3229166667 | I12: =IF(H12="","0:00",IF(H12-G12<8/24,H12-G12,H12-G12-1/24)) -> 0:00 | J12: 0 | K12: 0 | L12: =IF(J12="","",J12+K12) -> 0 | P12: オリエンテーション
B13: 2020-04-04 | C13: 43925 | D13: 0.375 | E13: 0.71875 | F13: 0.3020833333 | G13: 0.375 | H13: 0.71875 | I13: =IF(H13="","0:00",IF(H13-G13<8/24,H13-G13,H13-G13-1/24)) -> 0.3020833333 | J13: =IF(F13="","",IF(G13="",$D$5-D13,IF(G13<=$D$5,G13-D13,IF(G13>$D$5,$D$5-D13,IF(D13>$D$5,$D$5-D13))))) -> -0.02083333333 | K13: 0 | L13: =IF(F13="","",F13-I13) -> 0 | P13: オリエンテーション
B14: 2020-04-05 | C14: 43926 | I14: =IF(H14="","0:00",IF(H14-G14<8/24,H14-G14,H14-G14-1/24)) -> 0:00 | L14: =IF(F14="","",F14-I14) -> 
B15: 2020-04-06 | C15: 43927 | D15: 0.3541666667 | E15: 0.71875 | F15: 0.3229166667 | I15: 0:00 | J15: 0 | K15: 0 | L15: =IF(J15="","",J15+K15) -> 0 | P15: オリエンテーション
B16: 2020-04-07 | C16: 43928 | D16: 0.3333333333 | E16: 0.71875 | F16: 0.34375 | G16: 0.3402777778 | H16: 0.6666666667 | I16: 0.3263888889 | J16: 0.006944444444 | K16: 0 | L16: 0.006944444444 | P16: オリエンテーション
B17: 2020-04-08 | C17: 43929 | D17: 0.3333333333 | E17: 0.71875 | F17: 0.34375 | I17: 0:00 | J17: 0.02083333333 | K17: 0 | L17: 0.02083333333 | P17: オリエンテーション
B18: 2020-04-09 | C18: 43930 | D18: 0.3541666667 | E18: 0.75 | F18: 0.3541666667 | I18: 0:00 | J18: 0 | K18: 0.03125 | L18: 0.03125 | P18: オリエンテーション
B19: 2020-04-10 | C19: 43931 | I19: =IF(H19="","0:00",IF(H19-G19<8/24,H19-G19,H19-G19-1/24)) -> 0:00 | K19: =IF(F19="","",IF(H19="",E19-$E$5,IF(H19<=E19,"0:00",IF(H19>$E$5,H19-$E$5))+IF(G19>=$E$5,G19-$E$5,"0:00"))) ->  | L19: =IF(J19="","",J19+K19) ->  | P19: 4/4振替
B20: 2020-04-11 | C20: 43932 | I20: 0:00 | K20: =IF(F20="","",IF(H20="",E20-$E$5,IF(H20<=E20,"0:00",IF(H20>$E$5,H20-$E$5))+IF(G20>=$E$5,G20-$E$5,"0:00"))) ->  | L20: =IF(F20="","",F20-I20) ->  | O20: ○
B21: 2020-04-12 | C21: 43933 | I21: 0:00 | L21: =IF(F21="","",F21-I21) -> 
B22: 2020-04-13 | C22: 43934 | D22: 0.3541666667 | E22: 0.7291666667 | F22: 0.3333333333 | I22: 0:00 | J22: 0 | K22: 0.01041666667 | L22: =IF(J22="","",J22+K22) -> 0.01041666667 | M22: ○
B23: 2020-04-14 | C23: 43935 | D23: 0.3333333333 | E23: 0.7291666667 | F23: 0.3541666667 | I23: 0:00 | J23: 0.02083333333 | K23: 0.01041666667 | L23: 0.03125 | M23: ○
B24: 2020-04-15 | C24: 43936 | D24: 0.3333333333 | E24: 0.7291666667 | F24: 0.3541666667 | I24: 0:00 | J24: 0.02083333333 | K24: 0.01041666667 | L24: 0.03125 | M24: ○
B25: 2020-04-16 | C25: 43937 | D25: 0.3472222222 | E25: 0.7291666667 | F25: 0.3402777778 | I25: 0:00 | J25: 0.006944444444 | K25: 0.01041666667 | L25: 0.01736111111 | M25: ○
B26: =B25+1 -> 2020-04-17 | C26: 43938 | D26: 0.3333333333 | E26: 0.75 | F26: 0.375 | I26: 0:00 | J26: 0.02083333333 | K26: 0.03125 | L26: 0.05208333333 | N26: ○
B27: 2020-04-18 | C27: 43939 | I27: 0:00 | L27: =IF(F27="","",F27-I27) ->  | O27: ○
B28: 2020-04-19 | C28: 43940 | I28: 0:00 | L28: =IF(F28="","",F28-I28) -> 
B29: 2020-04-20 | C29: 43941 | D29: 0.3333333333 | E29: 0.75 | F29: 0.375 | I29: 0:00 | J29: 0.02083333333 | K29: 0.03125 | L29: =IF(J29="","",J29+K29) -> 0.05208333333 | M29: ○ | P29: ミーティング
B30: 2020-04-21 | C30: 43942 | D30: 0.3541666667 | E30: 0.71875 | F30: 0.3229166667 | I30: 0:00 | J30: 0 | K30: 0 | L30: 0
B31: 2020-04-22 | C31: 43943 | D31: 0.3541666667 | E31: 1.0625 | F31: 0.6666666667 | G31: 0.7916666667 | H31: 1.052083333 | I31: 0.2604166667 | J31: 0 | K31: 0.07291666667 | L31: 0.07291666667 | P31: 岩崎救急
B32: 2020-04-23 | C32: 43944 | D32: 0.3125 | E32: 0.7916666667 | F32: 0.4375 | I32: 0:00 | J32: 0.04166666667 | K32: 0.07291666667 | L32: 0.1145833333 | N32: ○
B33: 2020-04-24 | C33: 43945 | D33: 0.34375 | E33: 0.71875 | F33: 0.3333333333 | I33: 0:00 | J33: 0.01041666667 | K33: 0 | L33: 0.01041666667
B34: 2020-04-25 | C34: 43946 | I34: 0:00 | L34: =IF(F34="","",F34-I34) ->  | O34: ○
B35: 2020-04-26 | C35: 43947 | I35: 0:00 | L35: =IF(F35="","",F35-I35) -> 
B36: 2020-04-27 | C36: 43948 | D36: 0.34375 | E36: 0.71875 | F36: 0.3333333333 | I36: 0:00 | J36: 0.01041666667 | K36: 0 | L36: =IF(J36="","",J36+K36) -> 0.01041666667
B37: 2020-04-28 | C37: 43949 | D37: 0.3402777778 | E37: 0.7291666667 | F37: 0.3472222222 | I37: 0:00 | J37: 0.01388888889 | K37: 0.01041666667 | L37: 0.02430555556
B38: 2020-04-29 | C38: 43950 | I38: 0:00
B39: 2020-04-30 | C39: =B39 -> 43951 | D39: 0.2916666667 | E39: 0.71875 | F39: 0.3854166667 | I39: =IF(H39="","0:00",IF(H39-G39<8/24,H39-G39,H39-G39-1/24)) -> 0:00 | J39: 0.0625 | K39: 0 | L39: 0.0625 | N39: ○
I40: =IF(H40="","0:00",IF(H40-G40<8/24,H40-G40,H40-G40-1/24)) -> 0:00
B41: 勤務時間数合計（A）（8時間以上で休憩1時間差引済） | F41: =IF(SUM(F10:F40)=0,"",SUM(F10:F40)) -> 7.645833333 | G41: 院外・救急従事時間 | I41: =IF(SUM(I10:I40)=0,"",SUM(I10:I40)) -> 0.8888888889 | L41: =IF(SUM(L10:L40)=0,"",SUM(L10:L40)) -> 0.6006944444 | M41: 超勤手当該当時間数
B42: 既定勤務時間（B）（7時間45分×平日数） | F42: =7.75/24*21 -> 6.78125
B43: 超過勤務時間数（A－B） | F43: =IF(F41="","",F41-F42) -> 0.8645833333
B45: ※時間は24時間表記（退勤1：00は25：00と表記）で入力してください。
B46: ※翌月1日 朝9時まで に初期研修センターへ提出すること。
B47: ※研修科指導医確認欄には、必ず指導医のご署名をいただいてください。

Sheet 4月
B1: 勤務状況報告書
B3: 2020-04-01 | N3: 研修科名：
B4: 規定の 出退勤時間 | D4: 出勤 | E4: 退勤
D5: 08:30:00 | E5: 17:15:00 | G5: 左記出退勤時間の内 院外・救急研修に 従事した時間 | I5: 院外・救急 勤務時間数 ※8時間以上で 休憩1時間差引済 | N5: 氏 名：
B8: 日 | C8: 曜日 | D8: 出勤・退勤時間 | F8: 勤務時間数 ※8時間以上で 休憩1時間差引済 | L8: 院外・救急 時間を除いた 残業時間 | M8: 主な超過勤務内容 (該当する業務に◯を記入)
D9: 出勤 | E9: 退勤 | G9: 出勤 | H9: 退勤 | J9: 前残業 | K9: 後残業 | M9: 病棟業務 | N9: カンファレンス | O9: レポート作成 | P9: その他の業務内容
B10: =B3 -> 2020-04-01 | C10: =B10 -> 43922 | F10: =IF(E10="","",IF(E10-D10<8/24,E10-D10,E10-D10-1/24)) ->  | I10: =IF(H10="","0:00",IF(H10-G10<8/24,H10-G10,H10-G10-1/24)) -> 0:00 | J10: =IF(F10="","",IF(G10="",$D$5-D10,IF(G10<=$D$5,G10-D10,IF(G10>$D$5,$D$5-D10,IF(D10>$D$5,$D$5-D10))))) ->  | K10: =IF(F10="","",IF(H10="",E10-$E$5,IF(H10<=E10,"0:00",IF(H10>$E$5,H10-$E$5))+IF(G10>=$E$5,G10-$E$5,"0:00"))) ->  | L10: =IF(J10="","",J10+K10) -> 
B11: =B10+1 -> 2020-04-02 | C11: =B11 -> 43923 | F11: =IF(E11="","",IF(E11-D11<8/24,E11-D11,E11-D11-1/24)) ->  | I11: =IF(H11="","0:00",IF(H11-G11<8/24,H11-G11,H11-G11-1/24)) -> 0:00 | L11: =IF(J11="","",J11+K11) -> 
B12: =B11+1 -> 2020-04-03 | C12: 43924 | I12: =IF(H12="","0:00",IF(H12-G12<8/24,H12-G12,H12-G12-1/24)) -> 0:00 | L12: =IF(J12="","",J12+K12) -> 
B13: 2020-04-04 | C13: 43925 | I13: =IF(H13="","0:00",IF(H13-G13<8/24,H13-G13,H13-G13-1/24)) -> 0:00 | J13: =IF(F13="","",IF(G13="",$D$5-D13,IF(G13<=$D$5,G13-D13,IF(G13>$D$5,$D$5-D13,IF(D13>$D$5,$D$5-D13))))) ->  | L13: =IF(F13="","",F13-I13) -> 
B14: 2020-04-05 | C14: 43926 | I14: =IF(H14="","0:00",IF(H14-G14<8/24,H14-G14,H14-G14-1/24)) -> 0:00 | L14: =IF(F14="","",F14-I14) -> 
B15: 2020-04-06 | C15: 43927 | I15: 0:00 | L15: =IF(J15="","",J15+K15) -> 
B16: 2020-04-07 | C16: 43928 | I16: 0:00
B17: 2020-04-08 | C17: 43929 | I17: 0:00
B18: 2020-04-09 | C18: 43930 | I18: 0:00
B19: 2020-04-10 | C19: 43931 | I19: =IF(H19="","0:00",IF(H19-G19<8/24,H19-G19,H19-G19-1/24)) -> 0:00 | K19: =IF(F19="","",IF(H19="",E19-$E$5,IF(H19<=E19,"0:00",IF(H19>$E$5,H19-$E$5))+IF(G19>=$E$5,G19-$E$5,"0:00"))) ->  | L19: =IF(J19="","",J19+K19) -> 
B20: 2020-04-11 | C20: 43932 | I20: 0:00 | K20: =IF(F20="","",IF(H20="",E20-$E$5,IF(H20<=E20,"0:00",IF(H20>$E$5,H20-$E$5))+IF(G20>=$E$5,G20-$E$5,"0:00"))) ->  | L20: =IF(F20="","",F20-I20) ->  | O20: ○
B21: 2020-04-12 | C21: 43933 | I21: 0:00 | L21: =IF(F21="","",F21-I21) -> 
B22: 2020-04-13 | C22: 43934 | I22: 0:00 | L22: =IF(J22="","",J22+K22) -> 
B23: 2020-04-14 | C23: 43935 | I23: 0:00
B24: 2020-04-15 | C24: 43936 | I24: 0:00
B25: 2020-04-16 | C25: 43937 | I25: 0:00
B26: =B25+1 -> 2020-04-17 | C26: 43938 | I26: 0:00
B27: 2020-04-18 | C27: 43939 | I27: 0:00 | L27: =IF(F27="","",F27-I27) ->  | O27: ○
B28: 2020-04-19 | C28: 43940 | I28: 0:00 | L28: =IF(F28="","",F28-I28) -> 
B29: 2020-04-20 | C29: 43941 | I29: 0:00 | L29: =IF(J29="","",J29+K29) ->  | P29: ミーティング
B30: 2020-04-21 | C30: 43942 | I30: 0:00
B31: 2020-04-22 | C31: 43943 | I31: 0:00
B32: 2020-04-23 | C32: 43944 | I32: 0:00
B33: 2020-04-24 | C33: 43945 | I33: 0:00
B34: 2020-04-25 | C34: 43946 | I34: 0:00 | L34: =IF(F34="","",F34-I34) ->  | O34: ○
B35: 2020-04-26 | C35: 43947 | I35: 0:00 | L35: =IF(F35="","",F35-I35) -> 
B36: 2020-04-27 | C36: 43948 | I36: 0:00 | L36: =IF(J36="","",J36+K36) -> 
B37: 2020-04-28 | C37: 43949 | I37: 0:00
B38: 2020-04-29 | C38: 43950 | I38: 0:00
B39: 2020-04-30 | C39: =B39 -> 43951 | I39: =IF(H39="","0:00",IF(H39-G39<8/24,H39-G39,H39-G39-1/24)) -> 0:00
I40: =IF(H40="","0:00",IF(H40-G40<8/24,H40-G40,H40-G40-1/24)) -> 0:00
B41: 勤務時間数合計（A）（8時間以上で休憩1時間差引済） | F41: =IF(SUM(F10:F40)=0,"",SUM(F10:F40)) ->  | G41: 院外・救急従事時間 | I41: =IF(SUM(I10:I40)=0,"",SUM(I10:I40)) ->  | L41: =IF(SUM(L10:L40)=0,"",SUM(L10:L40)) ->  | M41: 超勤手当該当時間数
B42: 既定勤務時間（B）（7時間45分×平日数） | F42: =7.75/24*21 -> 6.78125
B43: 超過勤務時間数（A－B） | F43: =IF(F41="","",F41-F42) -> 
B45: ※時間は24時間表記（退勤1：00は25：00と表記）で入力してください。
B46: ※翌月1日 朝9時まで に初期研修センターへ提出すること。
B47: ※研修科指導医確認欄には、必ず指導医のご署名をいただいてください。

Sheet 5月
B1: 勤務状況報告書
B3: 2020-05-01 | N3: 研修科名：
B4: 規定の 出退勤時間 | D4: 出勤 | E4: 退勤
D5: 08:30:00 | E5: 17:15:00 | G5: 左記出退勤時間の内 院外・救急研修に 従事した時間 | I5: 院外・救急 勤務時間数 ※8時間以上で 休憩1時間差引済 | N5: 氏 名：
B8: 日 | C8: 曜日 | D8: 出勤・退勤時間 | F8: 勤務時間数 ※8時間以上で 休憩1時間差引済 | L8: 院外・救急 時間を除いた 残業時間 | M8: 主な超過勤務内容 (該当する業務に◯を記入)
D9: 出勤 | E9: 退勤 | G9: 出勤 | H9: 退勤 | J9: 前残業 | K9: 後残業 | M9: 病棟業務 | N9: カンファレンス | O9: レポート作成 | P9: その他の業務内容
B10: =B3 -> 2020-05-01 | C10: =B10 -> 43952 | F10: =IF(E10="","",IF(E10-D10<8/24,E10-D10,E10-D10-1/24)) ->  | I10: =IF(H10="","0:00",IF(H10-G10<8/24,H10-G10,H10-G10-1/24)) -> 0:00 | J10: =IF(F10="","",IF(G10="",$D$5-D10,IF(G10<=$D$5,G10-D10,IF(G10>$D$5,$D$5-D10,IF(D10>$D$5,$D$5-D10))))) ->  | K10: =IF(F10="","",IF(H10="",E10-$E$5,IF(H10<=E10,"0:00",IF(H10>$E$5,H10-$E$5))+IF(G10>=$E$5,G10-$E$5,"0:00"))) ->  | L10: =IF(J10="","",J10+K10) -> 
B11: =B10+1 -> 2020-05-02 | C11: =B11 -> 43953 | F11: =IF(E11="","",IF(E11-D11<8/24,E11-D11,E11-D11-1/24)) ->  | I11: =IF(H11="","0:00",IF(H11-G11<8/24,H11-G11,H11-G11-1/24)) -> 0:00 | L11: =IF(F11="","",F11-I11) -> 
B12: =B11+1 -> 2020-05-03 | C12: 43954 | I12: =IF(H12="","0:00",IF(H12-G12<8/24,H12-G12,H12-G12-1/24)) -> 0:00 | L12: =IF(F12="","",F12-I12) -> 
B13: 2020-05-04 | C13: 43955 | I13: =IF(H13="","0:00",IF(H13-G13<8/24,H13-G13,H13-G13-1/24)) -> 0:00 | J13: =IF(F13="","",IF(G13="",$D$5-D13,IF(G13<=$D$5,G13-D13,IF(G13>$D$5,$D$5-D13,IF(D13>$D$5,$D$5-D13))))) ->  | L13: =IF(F13="","",F13-I13) -> 
B14: 2020-05-05 | C14: 43956 | I14: 0:00 | L14: =IF(F14="","",F14-I14) -> 
B15: 2020-05-06 | C15: 43957 | I15: 0:00 | L15: =IF(F15="","",F15-I15) -> 
B16: 2020-05-07 | C16: 43958 | I16: 0:00 | L16: =IF(J16="","",J16+K16) -> 
B17: 2020-05-08 | C17: 43959 | I17: 0:00
B18: 2020-05-09 | C18: 43960 | I18: 0:00 | L18: =IF(F18="","",F18-I18) -> 
B19: 2020-05-10 | C19: 43961 | I19: 0:00 | K19: =IF(F19="","",IF(H19="",E19-$E$5,IF(H19<=E19,"0:00",IF(H19>$E$5,H19-$E$5))+IF(G19>=$E$5,G19-$E$5,"0:00"))) ->  | L19: =IF(F19="","",F19-I19) -> 
B20: 2020-05-11 | C20: 43962 | I20: 0:00 | K20: =IF(F20="","",IF(H20="",E20-$E$5,IF(H20<=E20,"0:00",IF(H20>$E$5,H20-$E$5))+IF(G20>=$E$5,G20-$E$5,"0:00"))) ->  | L20: =IF(J20="","",J20+K20) ->  | O20: ○ | P20: ミーティング
B21: 2020-05-12 | C21: 43963 | I21: 0:00 | L21: =IF(J21="","",J21+K21) -> 
B22: 2020-05-13 | C22: 43964 | I22: 0:00 | L22: =IF(J22="","",J22+K22) -> 
B23: 2020-05-14 | C23: 43965 | I23: 0:00
B24: 2020-05-15 | C24: 43966 | I24: 0:00
B25: 2020-05-16 | C25: 43967 | I25: 0:00 | L25: =IF(F25="","",F25-I25) -> 
B26: =B25+1 -> 2020-05-17 | C26: 43968 | I26: 0:00 | L26: =IF(F26="","",F26-I26) -> 
B27: 2020-05-18 | C27: 43969 | I27: 0:00 | L27: =IF(J27="","",J27+K27) ->  | O27: ○ | P27: グランドカンファレンス
B28: 2020-05-19 | C28: 43970 | I28: 0:00 | L28: =IF(J28="","",J28+K28) -> 
B29: 2020-05-20 | C29: 43971 | I29: 0:00 | L29: =IF(J29="","",J29+K29) -> 
B30: 2020-05-21 | C30: 43972 | I30: 0:00
B31: 2020-05-22 | C31: 43973 | I31: 0:00
B32: 2020-05-23 | C32: 43974 | I32: 0:00 | L32: =IF(F32="","",F32-I32) -> 
B33: 2020-05-24 | C33: 43975 | I33: 0:00 | L33: =IF(F33="","",F33-I33) -> 
B34: 2020-05-25 | C34: 43976 | I34: 0:00 | L34: =IF(J34="","",J34+K34) ->  | O34: ○
B35: 2020-05-26 | C35: 43977 | I35: 0:00
B36: 2020-05-27 | C36: 43978 | I36: 0:00
B37: 2020-05-28 | C37: 43979 | I37: 0:00
B38: 2020-05-29 | C38: 43980 | I38: 0:00
B39: 2020-05-30 | C39: =B39 -> 43981 | I39: =IF(H39="","0:00",IF(H39-G39<8/24,H39-G39,H39-G39-1/24)) -> 0:00 | L39: =IF(F39="","",F39-I39) -> 
B40: 2020-05-31 | C40: =B40 -> 43982 | I40: 0:00 | L40: =IF(F40="","",F40-I40) -> 
B41: 勤務時間数合計（A）（8時間以上で休憩1時間差引済） | F41: =IF(SUM(F10:F40)=0,"",SUM(F10:F40)) ->  | G41: 院外・救急従事時間 | I41: =IF(SUM(I10:I40)=0,"",SUM(I10:I40)) ->  | L41: =IF(SUM(L10:L40)=0,"",SUM(L10:L40)) ->  | M41: 超勤手当該当時間数
B42: 既定勤務時間（B）（7時間45分×平日数） | F42: =7.75/24*18 -> 5.8125
B43: 超過勤務時間数（A－B） | F43: =IF(F41="","",F41-F42) -> 
B45: ※時間は24時間表記（退勤1：00は25：00と表記）で入力してください。
B46: ※翌月1日 朝9時まで に初期研修センターへ提出すること。
B47: ※研修科指導医確認欄には、必ず指導医のご署名をいただいてください。

Sheet 6月
B1: 勤務状況報告書
B3: 2020-06-01 | N3: 研修科名：
B4: 規定の 出退勤時間 | D4: 出勤 | E4: 退勤
D5: 08:30:00 | E5: 17:15:00 | G5: 左記出退勤時間の内 院外・救急研修に 従事した時間 | I5: 院外・救急 勤務時間数 ※8時間以上で 休憩1時間差引済 | N5: 氏 名：
B8: 日 | C8: 曜日 | D8: 出勤・退勤時間 | F8: 勤務時間数 ※8時間以上で 休憩1時間差引済 | L8: 院外・救急 時間を除いた 残業時間 | M8: 主な超過勤務内容 (該当する業務に◯を記入)
D9: 出勤 | E9: 退勤 | G9: 出勤 | H9: 退勤 | J9: 前残業 | K9: 後残業 | M9: 病棟業務 | N9: カンファレンス | O9: レポート作成 | P9: その他の業務内容
B10: =B3 -> 2020-06-01 | C10: =B10 -> 43983 | F10: =IF(E10="","",IF(E10-D10<8/24,E10-D10,E10-D10-1/24)) ->  | I10: =IF(H10="","0:00",IF(H10-G10<8/24,H10-G10,H10-G10-1/24)) -> 0:00 | J10: =IF(F10="","",IF(G10="",$D$5-D10,IF(G10<=$D$5,G10-D10,IF(G10>$D$5,$D$5-D10,IF(D10>$D$5,$D$5-D10))))) ->  | K10: =IF(F10="","",IF(H10="",E10-$E$5,IF(H10<=E10,"0:00",IF(H10>$E$5,H10-$E$5))+IF(G10>=$E$5,G10-$E$5,"0:00"))) ->  | L10: =IF(J10="","",J10+K10) -> 
B11: =B10+1 -> 2020-06-02 | C11: =B11 -> 43984 | F11: =IF(E11="","",IF(E11-D11<8/24,E11-D11,E11-D11-1/24)) ->  | I11: =IF(H11="","0:00",IF(H11-G11<8/24,H11-G11,H11-G11-1/24)) -> 0:00 | L11: =IF(J11="","",J11+K11) -> 
B12: =B11+1 -> 2020-06-03 | C12: 43985 | I12: =IF(H12="","0:00",IF(H12-G12<8/24,H12-G12,H12-G12-1/24)) -> 0:00 | L12: =IF(J12="","",J12+K12) -> 
B13: 2020-06-04 | C13: 43986 | I13: =IF(H13="","0:00",IF(H13-G13<8/24,H13-G13,H13-G13-1/24)) -> 0:00 | J13: =IF(F13="","",IF(G13="",$D$5-D13,IF(G13<=$D$5,G13-D13,IF(G13>$D$5,$D$5-D13,IF(D13>$D$5,$D$5-D13))))) ->  | L13: =IF(J13="","",J13+K13) -> 
B14: 2020-06-05 | C14: 43987 | I14: =IF(H14="","0:00",IF(H14-G14<8/24,H14-G14,H14-G14-1/24)) -> 0:00 | L14: =IF(J14="","",J14+K14) -> 
B15: 2020-06-06 | C15: 43988 | I15: 0:00 | L15: =IF(F15="","",F15-I15) -> 
B16: 2020-06-07 | C16: 43989 | I16: 0:00 | L16: =IF(F16="","",F16-I16) -> 
B17: 2020-06-08 | C17: 43990 | I17: 0:00 | L17: =IF(J17="","",J17+K17) ->  | P17: ミーティング
B18: 2020-06-09 | C18: 43991 | I18: 0:00 | L18: =IF(J18="","",J18+K18) -> 
B19: 2020-06-10 | C19: 43992 | I19: =IF(H19="","0:00",IF(H19-G19<8/24,H19-G19,H19-G19-1/24)) -> 0:00 | K19: =IF(F19="","",IF(H19="",E19-$E$5,IF(H19<=E19,"0:00",IF(H19>$E$5,H19-$E$5))+IF(G19>=$E$5,G19-$E$5,"0:00"))) ->  | L19: =IF(J19="","",J19+K19) -> 
B20: 2020-06-11 | C20: 43993 | I20: 0:00 | K20: =IF(F20="","",IF(H20="",E20-$E$5,IF(H20<=E20,"0:00",IF(H20>$E$5,H20-$E$5))+IF(G20>=$E$5,G20-$E$5,"0:00"))) ->  | L20: =IF(J20="","",J20+K20) ->  | O20: ○
B21: 2020-06-12 | C21: 43994 | I21: 0:00 | L21: =IF(J21="","",J21+K21) -> 
B22: 2020-06-13 | C22: 43995 | I22: 0:00 | L22: =IF(F22="","",F22-I22) -> 
B23: 2020-06-14 | C23: 43996 | I23: 0:00 | L23: =IF(F23="","",F23-I23) -> 
B24: 2020-06-15 | C24: 43997 | I24: 0:00 | L24: =IF(J24="","",J24+K24) ->  | P24: 研修医CPC
B25: 2020-06-16 | C25: 43998 | I25: 0:00 | L25: =IF(J25="","",J25+K25) -> 
B26: =B25+1 -> 2020-06-17 | C26: 43999 | I26: 0:00 | L26: =IF(J26="","",J26+K26) -> 
B27: 2020-06-18 | C27: 44000 | I27: 0:00 | L27: =IF(J27="","",J27+K27) ->  | O27: ○
B28: 2020-06-19 | C28: 44001 | I28: 0:00 | L28: =IF(J28="","",J28+K28) -> 
B29: 2020-06-20 | C29: 44002 | I29: 0:00 | L29: =IF(F29="","",F29-I29) -> 
B30: 2020-06-21 | C30: 44003 | I30: 0:00 | L30: =IF(F30="","",F30-I30) -> 
B31: 2020-06-22 | C31: 44004 | I31: 0:00 | L31: =IF(J31="","",J31+K31) -> 
B32: 2020-06-23 | C32: 44005 | I32: 0:00
B33: 2020-06-24 | C33: 44006 | I33: 0:00
B34: 2020-06-25 | C34: 44007 | I34: 0:00 | L34: =IF(J34="","",J34+K34) ->  | O34: ○
B35: 2020-06-26 | C35: 44008 | I35: 0:00 | L35: =IF(J35="","",J35+K35) -> 
B36: 2020-06-27 | C36: 44009 | I36: 0:00 | L36: =IF(F36="","",F36-I36) -> 
B37: 2020-06-28 | C37: 44010 | I37: 0:00 | L37: =IF(F37="","",F37-I37) -> 
B38: 2020-06-29 | C38: 44011 | I38: 0:00 | L38: =IF(J38="","",J38+K38) -> 
B39: =B38+1 -> 2020-06-30 | C39: =B39 -> 44012 | I39: =IF(H39="","0:00",IF(H39-G39<8/24,H39-G39,H39-G39-1/24)) -> 0:00 | L39: =IF(J39="","",J39+K39) -> 
B40: =B39+1 -> 2020-07-01 | C40: =B40 -> 44013 | I40: =IF(H40="","0:00",IF(H40-G40<8/24,H40-G40,H40-G40-1/24)) -> 0:00 | L40: =IF(J40="","",J40+K40) -> 
B41: 勤務時間数合計（A）（8時間以上で休憩1時間差引済） | F41: =IF(SUM(F10:F40)=0,"",SUM(F10:F40)) ->  | G41: 院外・救急従事時間 | I41: =IF(SUM(I10:I40)=0,"",SUM(I10:I40)) ->  | L41: =IF(SUM(L10:L40)=0,"",SUM(L10:L40)) ->  | M41: 超勤手当該当時間数
B42: 既定勤務時間（B）（7時間45分×平日数） | F42: =7.75/24*22 -> 7.104166667
B43: 超過勤務時間数（A－B） | F43: =IF(F41="","",F41-F42) -> 
B45: ※時間は24時間表記（退勤1：00は25：00と表記）で入力してください。
B46: ※翌月1日 朝9時まで に初期研修センターへ提出すること。
B47: ※研修科指導医確認欄には、必ず指導医のご署名をいただいてください。

Sheet 7月
B1: 勤務状況報告書
B3: 2020-07-01 | N3: 研修科名：
B4: 規定の 出退勤時間 | D4: 出勤 | E4: 退勤
D5: 08:30:00 | E5: 17:15:00 | G5: 左記出退勤時間の内 院外・救急研修に 従事した時間 | I5: 院外・救急 勤務時間数 ※8時間以上で 休憩1時間差引済 | N5: 氏 名：
B8: 日 | C8: 曜日 | D8: 出勤・退勤時間 | F8: 勤務時間数 ※8時間以上で 休憩1時間差引済 | L8: 院外・救急 時間を除いた 残業時間 | M8: 主な超過勤務内容 (該当する業務に◯を記入)
D9: 出勤 | E9: 退勤 | G9: 出勤 | H9: 退勤 | J9: 前残業 | K9: 後残業 | M9: 病棟業務 | N9: カンファレンス | O9: レポート作成 | P9: その他の業務内容
B10: =B3 -> 2020-07-01 | C10: =B10 -> 44013 | F10: =IF(E10="","",IF(E10-D10<8/24,E10-D10,E10-D10-1/24)) ->  | I10: =IF(H10="","0:00",IF(H10-G10<8/24,H10-G10,H10-G10-1/24)) -> 0:00 | J10: =IF(F10="","",IF(G10="",$D$5-D10,IF(G10<=$D$5,G10-D10,IF(G10>$D$5,$D$5-D10,IF(D10>$D$5,$D$5-D10))))) ->  | K10: =IF(F10="","",IF(H10="",E10-$E$5,IF(H10<=E10,"0:00",IF(H10>$E$5,H10-$E$5))+IF(G10>=$E$5,G10-$E$5,"0:00"))) ->  | L10: =IF(J10="","",J10+K10) -> 
B11: =B10+1 -> 2020-07-02 | C11: =B11 -> 44014 | F11: =IF(E11="","",IF(E11-D11<8/24,E11-D11,E11-D11-1/24)) ->  | I11: =IF(H11="","0:00",IF(H11-G11<8/24,H11-G11,H11-G11-1/24)) -> 0:00 | L11: =IF(J11="","",J11+K11) -> 
B12: =B11+1 -> 2020-07-03 | C12: 44015 | I12: =IF(H12="","0:00",IF(H12-G12<8/24,H12-G12,H12-G12-1/24)) -> 0:00 | L12: =IF(J12="","",J12+K12) -> 
B13: 2020-07-04 | C13: 44016 | I13: =IF(H13="","0:00",IF(H13-G13<8/24,H13-G13,H13-G13-1/24)) -> 0:00 | J13: =IF(F13="","",IF(G13="",$D$5-D13,IF(G13<=$D$5,G13-D13,IF(G13>$D$5,$D$5-D13,IF(D13>$D$5,$D$5-D13))))) ->  | L13: =IF(F13="","",F13-I13) -> 
B14: 2020-07-05 | C14: 44017 | I14: =IF(H14="","0:00",IF(H14-G14<8/24,H14-G14,H14-G14-1/24)) -> 0:00 | L14: =IF(F14="","",F14-I14) -> 
B15: 2020-07-06 | C15: 44018 | I15: 0:00 | L15: =IF(J15="","",J15+K15) -> 
B16: 2020-07-07 | C16: 44019 | I16: 0:00 | L16: =IF(J16="","",J16+K16) -> 
B17: 2020-07-08 | C17: 44020 | I17: 0:00 | L17: =IF(J17="","",J17+K17) -> 
B18: 2020-07-09 | C18: 44021 | I18: 0:00 | L18: =IF(J18="","",J18+K18) -> 
B19: 2020-07-10 | C19: 44022 | I19: =IF(H19="","0:00",IF(H19-G19<8/24,H19-G19,H19-G19-1/24)) -> 0:00 | K19: =IF(F19="","",IF(H19="",E19-$E$5,IF(H19<=E19,"0:00",IF(H19>$E$5,H19-$E$5))+IF(G19>=$E$5,G19-$E$5,"0:00"))) ->  | L19: =IF(J19="","",J19+K19) -> 
B20: 2020-07-11 | C20: 44023 | I20: 0:00 | K20: =IF(F20="","",IF(H20="",E20-$E$5,IF(H20<=E20,"0:00",IF(H20>$E$5,H20-$E$5))+IF(G20>=$E$5,G20-$E$5,"0:00"))) ->  | L20: =IF(F20="","",F20-I20) ->  | O20: ○
B21: 2020-07-12 | C21: 44024 | I21: 0:00 | L21: =IF(F21="","",F21-I21) -> 
B22: 2020-07-13 | C22: 44025 | I22: 0:00 | L22: =IF(J22="","",J22+K22) -> 
B23: 2020-07-14 | C23: 44026 | I23: 0:00 | L23: =IF(J23="","",J23+K23) -> 
B24: 2020-07-15 | C24: 44027 | I24: 0:00 | L24: =IF(J24="","",J24+K24) -> 
B25: 2020-07-16 | C25: 44028 | I25: 0:00 | L25: =IF(J25="","",J25+K25) -> 
B26: =B25+1 -> 2020-07-17 | C26: 44029 | I26: 0:00 | L26: =IF(J26="","",J26+K26) -> 
B27: 2020-07-18 | C27: 44030 | I27: 0:00 | L27: =IF(F27="","",F27-I27) ->  | O27: ○
B28: 2020-07-19 | C28: 44031 | I28: 0:00 | L28: =IF(F28="","",F28-I28) -> 
B29: 2020-07-20 | C29: 44032 | I29: 0:00 | L29: =IF(J29="","",J29+K29) -> 
B30: 2020-07-21 | C30: 44033 | I30: 0:00 | L30: =IF(J30="","",J30+K30) -> 
B31: 2020-07-22 | C31: 44034 | I31: 0:00 | L31: =IF(J31="","",J31+K31) -> 
B32: 2020-07-23 | C32: 44035 | I32: 0:00 | L32: =IF(F32="","",F32-I32) -> 
B33: 2020-07-24 | C33: 44036 | I33: 0:00 | L33: =IF(F33="","",F33-I33) -> 
B34: 2020-07-25 | C34: 44037 | I34: 0:00 | L34: =IF(F34="","",F34-I34) ->  | O34: ○
B35: 2020-07-26 | C35: 44038 | I35: 0:00 | L35: =IF(F35="","",F35-I35) -> 
B36: 2020-07-27 | C36: 44039 | I36: 0:00 | L36: =IF(J36="","",J36+K36) -> 
B37: 2020-07-28 | C37: 44040 | I37: 0:00 | L37: =IF(J37="","",J37+K37) -> 
B38: 2020-07-29 | C38: 44041 | I38: 0:00 | L38: =IF(J38="","",J38+K38) -> 
B39: =B38+1 -> 2020-07-30 | C39: =B39 -> 44042 | I39: =IF(H39="","0:00",IF(H39-G39<8/24,H39-G39,H39-G39-1/24)) -> 0:00 | L39: =IF(J39="","",J39+K39) -> 
B40: =B39+1 -> 2020-07-31 | C40: =B40 -> 44043 | I40: =IF(H40="","0:00",IF(H40-G40<8/24,H40-G40,H40-G40-1/24)) -> 0:00 | L40: =IF(J40="","",J40+K40) -> 
B41: 勤務時間数合計（A）（8時間以上で休憩1時間差引済） | F41: =IF(SUM(F10:F40)=0,"",SUM(F10:F40)) ->  | G41: 院外・救急従事時間 | I41: =IF(SUM(I10:I40)=0,"",SUM(I10:I40)) ->  | L41: =IF(SUM(L10:L40)=0,"",SUM(L10:L40)) ->  | M41: 超勤手当該当時間数
B42: 既定勤務時間（B）（7時間45分×平日数） | F42: =7.75/24*21 -> 6.78125
B43: 超過勤務時間数（A－B） | F43: =IF(F41="","",F41-F42) -> 
B45: ※時間は24時間表記（退勤1：00は25：00と表記）で入力してください。
B46: ※翌月1日 朝9時まで に初期研修センターへ提出すること。
B47: ※研修科指導医確認欄には、必ず指導医のご署名をいただいてください。

Sheet 8月
B1: 勤務状況報告書
B3: 2020-08-01 | N3: 研修科名：
B4: 規定の 出退勤時間 | D4: 出勤 | E4: 退勤
D5: 08:30:00 | E5: 17:15:00 | G5: 左記出退勤時間の内 院外・救急研修に 従事した時間 | I5: 院外・救急 勤務時間数 ※8時間以上で 休憩1時間差引済 | N5: 氏 名：
B8: 日 | C8: 曜日 | D8: 出勤・退勤時間 | F8: 勤務時間数 ※8時間以上で 休憩1時間差引済 | L8: 院外・救急 時間を除いた 残業時間 | M8: 主な超過勤務内容 (該当する業務に◯を記入)
D9: 出勤 | E9: 退勤 | G9: 出勤 | H9: 退勤 | J9: 前残業 | K9: 後残業 | M9: 病棟業務 | N9: カンファレンス | O9: レポート作成 | P9: その他の業務内容
B10: =B3 -> 2020-08-01 | C10: =B10 -> 44044 | F10: =IF(E10="","",IF(E10-D10<8/24,E10-D10,E10-D10-1/24)) ->  | I10: =IF(H10="","0:00",IF(H10-G10<8/24,H10-G10,H10-G10-1/24)) -> 0:00 | J10: =IF(F10="","",IF(G10="",$D$5-D10,IF(G10<=$D$5,G10-D10,IF(G10>$D$5,$D$5-D10,IF(D10>$D$5,$D$5-D10))))) ->  | K10: =IF(F10="","",IF(H10="",E10-$E$5,IF(H10<=E10,"0:00",IF(H10>$E$5,H10-$E$5))+IF(G10>=$E$5,G10-$E$5,"0:00"))) ->  | L10: =IF(F10="","",F10-I10) -> 
B11: =B10+1 -> 2020-08-02 | C11: =B11 -> 44045 | F11: =IF(E11="","",IF(E11-D11<8/24,E11-D11,E11-D11-1/24)) ->  | I11: =IF(H11="","0:00",IF(H11-G11<8/24,H11-G11,H11-G11-1/24)) -> 0:00 | L11: =IF(F11="","",F11-I11) -> 
B12: =B11+1 -> 2020-08-03 | C12: 44046 | I12: =IF(H12="","0:00",IF(H12-G12<8/24,H12-G12,H12-G12-1/24)) -> 0:00 | L12: =IF(J12="","",J12+K12) -> 
B13: 2020-08-04 | C13: 44047 | I13: =IF(H13="","0:00",IF(H13-G13<8/24,H13-G13,H13-G13-1/24)) -> 0:00 | J13: =IF(F13="","",IF(G13="",$D$5-D13,IF(G13<=$D$5,G13-D13,IF(G13>$D$5,$D$5-D13,IF(D13>$D$5,$D$5-D13))))) ->  | L13: =IF(J13="","",J13+K13) -> 
B14: 2020-08-05 | C14: 44048 | I14: =IF(H14="","0:00",IF(H14-G14<8/24,H14-G14,H14-G14-1/24)) -> 0:00 | L14: =IF(J14="","",J14+K14) -> 
B15: 2020-08-06 | C15: 44049 | I15: 0:00 | L15: =IF(J15="","",J15+K15) -> 
B16: 2020-08-07 | C16: 44050 | I16: 0:00 | L16: =IF(J16="","",J16+K16) -> 
B17: 2020-08-08 | C17: 44051 | I17: 0:00 | L17: =IF(F17="","",F17-I17) -> 
B18: 2020-08-09 | C18: 44052 | I18: 0:00 | L18: =IF(F18="","",F18-I18) -> 
B19: 2020-08-10 | C19: 44053 | I19: =IF(H19="","0:00",IF(H19-G19<8/24,H19-G19,H19-G19-1/24)) -> 0:00 | K19: =IF(F19="","",IF(H19="",E19-$E$5,IF(H19<=E19,"0:00",IF(H19>$E$5,H19-$E$5))+IF(G19>=$E$5,G19-$E$5,"0:00"))) ->  | L19: =IF(F19="","",F19-I19) -> 
B20: 2020-08-11 | C20: 44054 | I20: 0:00 | K20: =IF(F20="","",IF(H20="",E20-$E$5,IF(H20<=E20,"0:00",IF(H20>$E$5,H20-$E$5))+IF(G20>=$E$5,G20-$E$5,"0:00"))) ->  | L20: =IF(J20="","",J20+K20) ->  | O20: ○
B21: 2020-08-12 | C21: 44055 | I21: 0:00 | L21: =IF(J21="","",J21+K21) -> 
B22: 2020-08-13 | C22: 44056 | I22: 0:00 | L22: =IF(J22="","",J22+K22) -> 
B23: 2020-08-14 | C23: 44057 | I23: 0:00 | L23: =IF(J23="","",J23+K23) -> 
B24: 2020-08-15 | C24: 44058 | I24: 0:00 | L24: =IF(F24="","",F24-I24) -> 
B25: 2020-08-16 | C25: 44059 | I25: 0:00 | L25: =IF(F25="","",F25-I25) -> 
B26: =B25+1 -> 2020-08-17 | C26: 44060 | I26: 0:00 | L26: =IF(J26="","",J26+K26) -> 
B27: 2020-08-18 | C27: 44061 | I27: 0:00 | L27: =IF(J27="","",J27+K27) ->  | O27: ○
B28: 2020-08-19 | C28: 44062 | I28: 0:00 | L28: =IF(J28="","",J28+K28) -> 
B29: 2020-08-20 | C29: 44063 | I29: 0:00 | L29: =IF(J29="","",J29+K29) -> 
B30: 2020-08-21 | C30: 44064 | I30: 0:00 | L30: =IF(J30="","",J30+K30) -> 
B31: 2020-08-22 | C31: 44065 | I31: 0:00 | L31: =IF(F31="","",F31-I31) -> 
B32: 2020-08-23 | C32: 44066 | I32: 0:00 | L32: =IF(F32="","",F32-I32) -> 
B33: 2020-08-24 | C33: 44067 | I33: 0:00 | L33: =IF(J33="","",J33+K33) -> 
B34: 2020-08-25 | C34: 44068 | I34: 0:00 | L34: =IF(J34="","",J34+K34) ->  | O34: ○
B35: 2020-08-26 | C35: 44069 | I35: 0:00 | L35: =IF(J35="","",J35+K35) -> 
B36: 2020-08-27 | C36: 44070 | I36: 0:00 | L36: =IF(J36="","",J36+K36) -> 
B37: 2020-08-28 | C37: 44071 | I37: 0:00 | L37: =IF(J37="","",J37+K37) -> 
B38: 2020-08-29 | C38: 44072 | I38: 0:00 | L38: =IF(F38="","",F38-I38) -> 
B39: =B38+1 -> 2020-08-30 | C39: =B39 -> 44073 | I39: =IF(H39="","0:00",IF(H39-G39<8/24,H39-G39,H39-G39-1/24)) -> 0:00 | L39: =IF(F39="","",F39-I39) -> 
B40: =B39+1 -> 2020-08-31 | C40: =B40 -> 44074 | I40: =IF(H40="","0:00",IF(H40-G40<8/24,H40-G40,H40-G40-1/24)) -> 0:00 | L40: =IF(J40="","",J40+K40) -> 
B41: 勤務時間数合計（A）（8時間以上で休憩1時間差引済） | F41: =IF(SUM(F10:F40)=0,"",SUM(F10:F40)) ->  | G41: 院外・救急従事時間 | I41: =IF(SUM(I10:I40)=0,"",SUM(I10:I40)) ->  | L41: =IF(SUM(L10:L40)=0,"",SUM(L10:L40)) ->  | M41: 超勤手当該当時間数
B42: 既定勤務時間（B）（7時間45分×平日数） | F42: =7.75/24*20 -> 6.458333333
B43: 超過勤務時間数（A－B） | F43: =IF(F41="","",F41-F42) -> 
B45: ※時間は24時間表記（退勤1：00は25：00と表記）で入力してください。
B46: ※翌月1日 朝9時まで に初期研修センターへ提出すること。
B47: ※研修科指導医確認欄には、必ず指導医のご署名をいただいてください。

Sheet 9月
B1: 勤務状況報告書
B3: 2020-09-01 | N3: 研修科名：
B4: 規定の 出退勤時間 | D4: 出勤 | E4: 退勤
D5: 08:30:00 | E5: 17:15:00 | G5: 左記出退勤時間の内 院外・救急研修に 従事した時間 | I5: 院外・救急 勤務時間数 ※8時間以上で 休憩1時間差引済 | N5: 氏 名：
B8: 日 | C8: 曜日 | D8: 出勤・退勤時間 | F8: 勤務時間数 ※8時間以上で 休憩1時間差引済 | L8: 院外・救急 時間を除いた 残業時間 | M8: 主な超過勤務内容 (該当する業務に◯を記入)
D9: 出勤 | E9: 退勤 | G9: 出勤 | H9: 退勤 | J9: 前残業 | K9: 後残業 | M9: 病棟業務 | N9: カンファレンス | O9: レポート作成 | P9: その他の業務内容
B10: =B3 -> 2020-09-01 | C10: =B10 -> 44075 | F10: =IF(E10="","",IF(E10-D10<8/24,E10-D10,E10-D10-1/24)) ->  | I10: =IF(H10="","0:00",IF(H10-G10<8/24,H10-G10,H10-G10-1/24)) -> 0:00 | J10: =IF(F10="","",IF(G10="",$D$5-D10,IF(G10<=$D$5,G10-D10,IF(G10>$D$5,$D$5-D10,IF(D10>$D$5,$D$5-D10))))) ->  | K10: =IF(F10="","",IF(H10="",E10-$E$5,IF(H10<=E10,"0:00",IF(H10>$E$5,H10-$E$5))+IF(G10>=$E$5,G10-$E$5,"0:00"))) ->  | L10: =IF(J10="","",J10+K10) -> 
B11: =B10+1 -> 2020-09-02 | C11: =B11 -> 44076 | F11: =IF(E11="","",IF(E11-D11<8/24,E11-D11,E11-D11-1/24)) ->  | I11: =IF(H11="","0:00",IF(H11-G11<8/24,H11-G11,H11-G11-1/24)) -> 0:00 | L11: =IF(J11="","",J11+K11) -> 
B12: =B11+1 -> 2020-09-03 | C12: 44077 | I12: =IF(H12="","0:00",IF(H12-G12<8/24,H12-G12,H12-G12-1/24)) -> 0:00 | L12: =IF(J12="","",J12+K12) -> 
B13: 2020-09-04 | C13: 44078 | I13: =IF(H13="","0:00",IF(H13-G13<8/24,H13-G13,H13-G13-1/24)) -> 0:00 | J13: =IF(F13="","",IF(G13="",$D$5-D13,IF(G13<=$D$5,G13-D13,IF(G13>$D$5,$D$5-D13,IF(D13>$D$5,$D$5-D13))))) ->  | L13: =IF(J13="","",J13+K13) -> 
B14: 2020-09-05 | C14: 44079 | I14: =IF(H14="","0:00",IF(H14-G14<8/24,H14-G14,H14-G14-1/24)) -> 0:00 | L14: =IF(F14="","",F14-I14) -> 
B15: 2020-09-06 | C15: 44080 | I15: 0:00 | L15: =IF(F15="","",F15-I15) -> 
B16: 2020-09-07 | C16: 44081 | I16: 0:00 | L16: =IF(J16="","",J16+K16) -> 
B17: 2020-09-08 | C17: 44082 | I17: 0:00 | L17: =IF(J17="","",J17+K17) -> 
B18: 2020-09-09 | C18: 44083 | I18: 0:00 | L18: =IF(J18="","",J18+K18) -> 
B19: 2020-09-10 | C19: 44084 | I19: =IF(H19="","0:00",IF(H19-G19<8/24,H19-G19,H19-G19-1/24)) -> 0:00 | K19: =IF(F19="","",IF(H19="",E19-$E$5,IF(H19<=E19,"0:00",IF(H19>$E$5,H19-$E$5))+IF(G19>=$E$5,G19-$E$5,"0:00"))) ->  | L19: =IF(J19="","",J19+K19) -> 
B20: 2020-09-11 | C20: 44085 | I20: 0:00 | K20: =IF(F20="","",IF(H20="",E20-$E$5,IF(H20<=E20,"0:00",IF(H20>$E$5,H20-$E$5))+IF(G20>=$E$5,G20-$E$5,"0:00"))) ->  | L20: =IF(J20="","",J20+K20) ->  | O20: ○
B21: 2020-09-12 | C21: 44086 | I21: 0:00 | L21: =IF(F21="","",F21-I21) -> 
B22: 2020-09-13 | C22: 44087 | I22: 0:00 | L22: =IF(F22="","",F22-I22) -> 
B23: 2020-09-14 | C23: 44088 | I23: 0:00 | L23: =IF(J23="","",J23+K23) -> 
B24: 2020-09-15 | C24: 44089 | I24: 0:00 | L24: =IF(J24="","",J24+K24) -> 
B25: 2020-09-16 | C25: 44090 | I25: 0:00 | L25: =IF(J25="","",J25+K25) -> 
B26: =B25+1 -> 2020-09-17 | C26: 44091 | I26: 0:00 | L26: =IF(J26="","",J26+K26) -> 
B27: 2020-09-18 | C27: 44092 | I27: 0:00 | L27: =IF(J27="","",J27+K27) ->  | O27: ○
B28: 2020-09-19 | C28: 44093 | I28: 0:00 | L28: =IF(F28="","",F28-I28) -> 
B29: 2020-09-20 | C29: 44094 | I29: 0:00 | L29: =IF(F29="","",F29-I29) -> 
B30: 2020-09-21 | C30: 44095 | I30: 0:00 | L30: =IF(F30="","",F30-I30) -> 
B31: 2020-09-22 | C31: 44096 | I31: 0:00 | L31: =IF(F31="","",F31-I31) -> 
B32: 2020-09-23 | C32: 44097 | I32: 0:00 | L32: =IF(J32="","",J32+K32) -> 
B33: 2020-09-24 | C33: 44098 | I33: 0:00 | L33: =IF(J33="","",J33+K33) -> 
B34: 2020-09-25 | C34: 44099 | I34: 0:00 | L34: =IF(J34="","",J34+K34) ->  | O34: ○
B35: 2020-09-26 | C35: 44100 | I35: 0:00 | L35: =IF(F35="","",F35-I35) -> 
B36: 2020-09-27 | C36: 44101 | I36: 0:00 | L36: =IF(F36="","",F36-I36) -> 
B37: 2020-09-28 | C37: 44102 | I37: 0:00 | L37: =IF(J37="","",J37+K37) -> 
B38: 2020-09-29 | C38: 44103 | I38: 0:00
B39: =B38+1 -> 2020-09-30 | C39: =B39 -> 44104 | I39: =IF(H39="","0:00",IF(H39-G39<8/24,H39-G39,H39-G39-1/24)) -> 0:00
B40: =B39+1 -> 2020-10-01 | C40: =B40 -> 44105 | I40: =IF(H40="","0:00",IF(H40-G40<8/24,H40-G40,H40-G40-1/24)) -> 0:00 | L40: =IF(J40="","",J40+K40) -> 
B41: 勤務時間数合計（A）（8時間以上で休憩1時間差引済） | F41: =IF(SUM(F10:F40)=0,"",SUM(F10:F40)) ->  | G41: 院外・救急従事時間 | I41: =IF(SUM(I10:I40)=0,"",SUM(I10:I40)) ->  | L41: =IF(SUM(L10:L40)=0,"",SUM(L10:L40)) ->  | M41: 超勤手当該当時間数
B42: 既定勤務時間（B）（7時間45分×平日数） | F42: =7.75/24*20 -> 6.458333333
B43: 超過勤務時間数（A－B） | F43: =IF(F41="","",F41-F42) -> 
B45: ※時間は24時間表記（退勤1：00は25：00と表記）で入力してください。
B46: ※翌月1日 朝9時まで に初期研修センターへ提出すること。
B47: ※研修科指導医確認欄には、必ず指導医のご署名をいただいてください。

Sheet 10月
B1: 勤務状況報告書
B3: 2020-10-01 | N3: 研修科名：
B4: 規定の 出退勤時間 | D4: 出勤 | E4: 退勤
D5: 08:30:00 | E5: 17:15:00 | G5: 左記出退勤時間の内 院外・救急研修に 従事した時間 | I5: 院外・救急 勤務時間数 ※8時間以上で 休憩1時間差引済 | N5: 氏 名：
B8: 日 | C8: 曜日 | D8: 出勤・退勤時間 | F8: 勤務時間数 ※8時間以上で 休憩1時間差引済 | L8: 院外・救急 時間を除いた 残業時間 | M8: 主な超過勤務内容 (該当する業務に◯を記入)
D9: 出勤 | E9: 退勤 | G9: 出勤 | H9: 退勤 | J9: 前残業 | K9: 後残業 | M9: 病棟業務 | N9: カンファレンス | O9: レポート作成 | P9: その他の業務内容
B10: =B3 -> 2020-10-01 | C10: =B10 -> 44105 | F10: =IF(E10="","",IF(E10-D10<8/24,E10-D10,E10-D10-1/24)) ->  | I10: =IF(H10="","0:00",IF(H10-G10<8/24,H10-G10,H10-G10-1/24)) -> 0:00 | J10: =IF(F10="","",IF(G10="",$D$5-D10,IF(G10<=$D$5,G10-D10,IF(G10>$D$5,$D$5-D10,IF(D10>$D$5,$D$5-D10))))) ->  | K10: =IF(F10="","",IF(H10="",E10-$E$5,IF(H10<=E10,"0:00",IF(H10>$E$5,H10-$E$5))+IF(G10>=$E$5,G10-$E$5,"0:00"))) ->  | L10: =IF(J10="","",J10+K10) -> 
B11: =B10+1 -> 2020-10-02 | C11: =B11 -> 44106 | F11: =IF(E11="","",IF(E11-D11<8/24,E11-D11,E11-D11-1/24)) ->  | I11: =IF(H11="","0:00",IF(H11-G11<8/24,H11-G11,H11-G11-1/24)) -> 0:00 | L11: =IF(J11="","",J11+K11) -> 
B12: =B11+1 -> 2020-10-03 | C12: 44107 | I12: =IF(H12="","0:00",IF(H12-G12<8/24,H12-G12,H12-G12-1/24)) -> 0:00 | L12: =IF(F12="","",F12-I12) -> 
B13: 2020-10-04 | C13: 44108 | I13: =IF(H13="","0:00",IF(H13-G13<8/24,H13-G13,H13-G13-1/24)) -> 0:00 | J13: =IF(F13="","",IF(G13="",$D$5-D13,IF(G13<=$D$5,G13-D13,IF(G13>$D$5,$D$5-D13,IF(D13>$D$5,$D$5-D13))))) ->  | L13: =IF(F13="","",F13-I13) -> 
B14: 2020-10-05 | C14: 44109 | I14: =IF(H14="","0:00",IF(H14-G14<8/24,H14-G14,H14-G14-1/24)) -> 0:00 | L14: =IF(J14="","",J14+K14) -> 
B15: 2020-10-06 | C15: 44110 | I15: 0:00 | L15: =IF(J15="","",J15+K15) -> 
B16: 2020-10-07 | C16: 44111 | I16: 0:00 | L16: =IF(J16="","",J16+K16) -> 
B17: 2020-10-08 | C17: 44112 | I17: 0:00 | L17: =IF(J17="","",J17+K17) -> 
B18: 2020-10-09 | C18: 44113 | I18: 0:00 | L18: =IF(J18="","",J18+K18) -> 
B19: 2020-10-10 | C19: 44114 | I19: =IF(H19="","0:00",IF(H19-G19<8/24,H19-G19,H19-G19-1/24)) -> 0:00 | K19: =IF(F19="","",IF(H19="",E19-$E$5,IF(H19<=E19,"0:00",IF(H19>$E$5,H19-$E$5))+IF(G19>=$E$5,G19-$E$5,"0:00"))) ->  | L19: =IF(F19="","",F19-I19) -> 
B20: 2020-10-11 | C20: 44115 | I20: 0:00 | K20: =IF(F20="","",IF(H20="",E20-$E$5,IF(H20<=E20,"0:00",IF(H20>$E$5,H20-$E$5))+IF(G20>=$E$5,G20-$E$5,"0:00"))) ->  | L20: =IF(F20="","",F20-I20) ->  | O20: ○
B21: 2020-10-12 | C21: 44116 | I21: 0:00 | L21: =IF(J21="","",J21+K21) -> 
B22: 2020-10-13 | C22: 44117 | I22: 0:00 | L22: =IF(J22="","",J22+K22) -> 
B23: 2020-10-14 | C23: 44118 | I23: 0:00 | L23: =IF(J23="","",J23+K23) -> 
B24: 2020-10-15 | C24: 44119 | I24: 0:00 | L24: =IF(J24="","",J24+K24) -> 
B25: 2020-10-16 | C25: 44120 | I25: 0:00 | L25: =IF(J25="","",J25+K25) -> 
B26: =B25+1 -> 2020-10-17 | C26: 44121 | I26: 0:00 | L26: =IF(F26="","",F26-I26) -> 
B27: 2020-10-18 | C27: 44122 | I27: 0:00 | L27: =IF(F27="","",F27-I27) ->  | O27: ○
B28: 2020-10-19 | C28: 44123 | I28: 0:00 | L28: =IF(J28="","",J28+K28) -> 
B29: 2020-10-20 | C29: 44124 | I29: 0:00 | L29: =IF(J29="","",J29+K29) -> 
B30: 2020-10-21 | C30: 44125 | I30: 0:00 | L30: =IF(J30="","",J30+K30) -> 
B31: 2020-10-22 | C31: 44126 | I31: 0:00 | L31: =IF(J31="","",J31+K31) -> 
B32: 2020-10-23 | C32: 44127 | I32: 0:00 | L32: =IF(J32="","",J32+K32) -> 
B33: 2020-10-24 | C33: 44128 | I33: 0:00 | L33: =IF(F33="","",F33-I33) -> 
B34: 2020-10-25 | C34: 44129 | I34: 0:00 | L34: =IF(F34="","",F34-I34) ->  | O34: ○
B35: 2020-10-26 | C35: 44130 | I35: 0:00 | L35: =IF(J35="","",J35+K35) -> 
B36: 2020-10-27 | C36: 44131 | I36: 0:00
B37: 2020-10-28 | C37: 44132 | I37: 0:00
B38: 2020-10-29 | C38: 44133 | I38: 0:00
B39: =B38+1 -> 2020-10-30 | C39: =B39 -> 44134 | I39: =IF(H39="","0:00",IF(H39-G39<8/24,H39-G39,H39-G39-1/24)) -> 0:00
B40: =B39+1 -> 2020-10-31 | C40: =B40 -> 44135 | I40: =IF(H40="","0:00",IF(H40-G40<8/24,H40-G40,H40-G40-1/24)) -> 0:00 | L40: =IF(F40="","",F40-I40) -> 
B41: 勤務時間数合計（A）（8時間以上で休憩1時間差引済） | F41: =IF(SUM(F10:F40)=0,"",SUM(F10:F40)) ->  | G41: 院外・救急従事時間 | I41: =IF(SUM(I10:I40)=0,"",SUM(I10:I40)) ->  | L41: =IF(SUM(L10:L40)=0,"",SUM(L10:L40)) ->  | M41: 超勤手当該当時間数
B42: 既定勤務時間（B）（7時間45分×平日数） | F42: =7.75/24*22 -> 7.104166667
B43: 超過勤務時間数（A－B） | F43: =IF(F41="","",F41-F42) -> 
B45: ※時間は24時間表記（退勤1：00は25：00と表記）で入力してください。
B46: ※翌月1日 朝9時まで に初期研修センターへ提出すること。
B47: ※研修科指導医確認欄には、必ず指導医のご署名をいただいてください。

Sheet 11月
B1: 勤務状況報告書
B3: 2020-11-01 | N3: 研修科名：
B4: 規定の 出退勤時間 | D4: 出勤 | E4: 退勤
D5: 08:30:00 | E5: 17:15:00 | G5: 左記出退勤時間の内 院外・救急研修に 従事した時間 | I5: 院外・救急 勤務時間数 ※8時間以上で 休憩1時間差引済 | N5: 氏 名：
B8: 日 | C8: 曜日 | D8: 出勤・退勤時間 | F8: 勤務時間数 ※8時間以上で 休憩1時間差引済 | L8: 院外・救急 時間を除いた 残業時間 | M8: 主な超過勤務内容 (該当する業務に◯を記入)
D9: 出勤 | E9: 退勤 | G9: 出勤 | H9: 退勤 | J9: 前残業 | K9: 後残業 | M9: 病棟業務 | N9: カンファレンス | O9: レポート作成 | P9: その他の業務内容
B10: =B3 -> 2020-11-01 | C10: =B10 -> 44136 | F10: =IF(E10="","",IF(E10-D10<8/24,E10-D10,E10-D10-1/24)) ->  | I10: =IF(H10="","0:00",IF(H10-G10<8/24,H10-G10,H10-G10-1/24)) -> 0:00 | J10: =IF(F10="","",IF(G10="",$D$5-D10,IF(G10<=$D$5,G10-D10,IF(G10>$D$5,$D$5-D10,IF(D10>$D$5,$D$5-D10))))) ->  | K10: =IF(F10="","",IF(H10="",E10-$E$5,IF(H10<=E10,"0:00",IF(H10>$E$5,H10-$E$5))+IF(G10>=$E$5,G10-$E$5,"0:00"))) ->  | L10: =IF(F10="","",F10-I10) -> 
B11: =B10+1 -> 2020-11-02 | C11: =B11 -> 44137 | F11: =IF(E11="","",IF(E11-D11<8/24,E11-D11,E11-D11-1/24)) ->  | I11: =IF(H11="","0:00",IF(H11-G11<8/24,H11-G11,H11-G11-1/24)) -> 0:00 | L11: =IF(J11="","",J11+K11) -> 
B12: =B11+1 -> 2020-11-03 | C12: 44138 | I12: =IF(H12="","0:00",IF(H12-G12<8/24,H12-G12,H12-G12-1/24)) -> 0:00 | L12: =IF(F12="","",F12-I12) -> 
B13: 2020-11-04 | C13: 44139 | I13: =IF(H13="","0:00",IF(H13-G13<8/24,H13-G13,H13-G13-1/24)) -> 0:00 | J13: =IF(F13="","",IF(G13="",$D$5-D13,IF(G13<=$D$5,G13-D13,IF(G13>$D$5,$D$5-D13,IF(D13>$D$5,$D$5-D13))))) -> 
B14: 2020-11-05 | C14: 44140 | I14: =IF(H14="","0:00",IF(H14-G14<8/24,H14-G14,H14-G14-1/24)) -> 0:00 | L14: =IF(J14="","",J14+K14) -> 
B15: 2020-11-06 | C15: 44141 | I15: 0:00
B16: 2020-11-07 | C16: 44142 | I16: 0:00 | L16: =IF(F16="","",F16-I16) -> 
B17: 2020-11-08 | C17: 44143 | I17: 0:00 | L17: =IF(F17="","",F17-I17) -> 
B18: 2020-11-09 | C18: 44144 | I18: 0:00
B19: 2020-11-10 | C19: 44145 | I19: =IF(H19="","0:00",IF(H19-G19<8/24,H19-G19,H19-G19-1/24)) -> 0:00 | K19: =IF(F19="","",IF(H19="",E19-$E$5,IF(H19<=E19,"0:00",IF(H19>$E$5,H19-$E$5))+IF(G19>=$E$5,G19-$E$5,"0:00"))) -> 
B20: 2020-11-11 | C20: 44146 | I20: 0:00 | K20: =IF(F20="","",IF(H20="",E20-$E$5,IF(H20<=E20,"0:00",IF(H20>$E$5,H20-$E$5))+IF(G20>=$E$5,G20-$E$5,"0:00"))) ->  | O20: ○
B21: 2020-11-12 | C21: 44147 | I21: 0:00
B22: 2020-11-13 | C22: 44148 | I22: 0:00
B23: 2020-11-14 | C23: 44149 | I23: 0:00 | L23: =IF(F23="","",F23-I23) -> 
B24: 2020-11-15 | C24: 44150 | I24: 0:00 | L24: =IF(F24="","",F24-I24) -> 
B25: 2020-11-16 | C25: 44151 | I25: 0:00 | L25: =IF(J25="","",J25+K25) -> 
B26: =B25+1 -> 2020-11-17 | C26: 44152 | I26: 0:00
B27: 2020-11-18 | C27: 44153 | I27: 0:00 | O27: ○
B28: 2020-11-19 | C28: 44154 | I28: 0:00 | L28: =IF(J28="","",J28+K28) -> 
B29: 2020-11-20 | C29: 44155 | I29: 0:00
B30: 2020-11-21 | C30: 44156 | I30: 0:00 | L30: =IF(F30="","",F30-I30) -> 
B31: 2020-11-22 | C31: 44157 | I31: 0:00 | L31: =IF(F31="","",F31-I31) -> 
B32: 2020-11-23 | C32: 44158 | I32: 0:00 | L32: =IF(F32="","",F32-I32) -> 
B33: 2020-11-24 | C33: 44159 | I33: 0:00 | L33: =IF(J33="","",J33+K33) -> 
B34: 2020-11-25 | C34: 44160 | I34: 0:00 | O34: ○
B35: 2020-11-26 | C35: 44161 | I35: 0:00 | L35: =IF(J35="","",J35+K35) -> 
B36: 2020-11-27 | C36: 44162 | I36: 0:00
B37: 2020-11-28 | C37: 44163 | I37: 0:00 | L37: =IF(F37="","",F37-I37) -> 
B38: 2020-11-29 | C38: 44164 | I38: 0:00 | L38: =IF(F38="","",F38-I38) -> 
B39: =B38+1 -> 2020-11-30 | C39: =B39 -> 44165 | I39: =IF(H39="","0:00",IF(H39-G39<8/24,H39-G39,H39-G39-1/24)) -> 0:00
B40: =B39+1 -> 2020-12-01 | C40: =B40 -> 44166 | I40: =IF(H40="","0:00",IF(H40-G40<8/24,H40-G40,H40-G40-1/24)) -> 0:00
B41: 勤務時間数合計（A）（8時間以上で休憩1時間差引済） | F41: =IF(SUM(F10:F40)=0,"",SUM(F10:F40)) ->  | G41: 院外・救急従事時間 | I41: =IF(SUM(I10:I40)=0,"",SUM(I10:I40)) ->  | L41: =IF(SUM(L10:L40)=0,"",SUM(L10:L40)) ->  | M41: 超勤手当該当時間数
B42: 既定勤務時間（B）（7時間45分×平日数） | F42: =7.75/24*19 -> 6.135416667
B43: 超過勤務時間数（A－B） | F43: =IF(F41="","",F41-F42) -> 
B45: ※時間は24時間表記（退勤1：00は25：00と表記）で入力してください。
B46: ※翌月1日 朝9時まで に初期研修センターへ提出すること。
B47: ※研修科指導医確認欄には、必ず指導医のご署名をいただいてください。

Sheet 12月
B1: 勤務状況報告書
B3: 2020-12-01 | N3: 研修科名：
B4: 規定の 出退勤時間 | D4: 出勤 | E4: 退勤
D5: 08:30:00 | E5: 17:15:00 | G5: 左記出退勤時間の内 院外・救急研修に 従事した時間 | I5: 院外・救急 勤務時間数 ※8時間以上で 休憩1時間差引済 | N5: 氏 名：
B8: 日 | C8: 曜日 | D8: 出勤・退勤時間 | F8: 勤務時間数 ※8時間以上で 休憩1時間差引済 | L8: 院外・救急 時間を除いた 残業時間 | M8: 主な超過勤務内容 (該当する業務に◯を記入)
D9: 出勤 | E9: 退勤 | G9: 出勤 | H9: 退勤 | J9: 前残業 | K9: 後残業 | M9: 病棟業務 | N9: カンファレンス | O9: レポート作成 | P9: その他の業務内容
B10: =B3 -> 2020-12-01 | C10: =B10 -> 44166 | F10: =IF(E10="","",IF(E10-D10<8/24,E10-D10,E10-D10-1/24)) ->  | I10: =IF(H10="","0:00",IF(H10-G10<8/24,H10-G10,H10-G10-1/24)) -> 0:00 | J10: =IF(F10="","",IF(G10="",$D$5-D10,IF(G10<=$D$5,G10-D10,IF(G10>$D$5,$D$5-D10,IF(D10>$D$5,$D$5-D10))))) ->  | K10: =IF(F10="","",IF(H10="",E10-$E$5,IF(H10<=E10,"0:00",IF(H10>$E$5,H10-$E$5))+IF(G10>=$E$5,G10-$E$5,"0:00"))) ->  | L10: =IF(J10="","",J10+K10) -> 
B11: =B10+1 -> 2020-12-02 | C11: =B11 -> 44167 | F11: =IF(E11="","",IF(E11-D11<8/24,E11-D11,E11-D11-1/24)) ->  | I11: =IF(H11="","0:00",IF(H11-G11<8/24,H11-G11,H11-G11-1/24)) -> 0:00
B12: =B11+1 -> 2020-12-03 | C12: 44168 | I12: =IF(H12="","0:00",IF(H12-G12<8/24,H12-G12,H12-G12-1/24)) -> 0:00
B13: 2020-12-04 | C13: 44169 | I13: =IF(H13="","0:00",IF(H13-G13<8/24,H13-G13,H13-G13-1/24)) -> 0:00 | J13: =IF(F13="","",IF(G13="",$D$5-D13,IF(G13<=$D$5,G13-D13,IF(G13>$D$5,$D$5-D13,IF(D13>$D$5,$D$5-D13))))) -> 
B14: 2020-12-05 | C14: 44170 | I14: =IF(H14="","0:00",IF(H14-G14<8/24,H14-G14,H14-G14-1/24)) -> 0:00 | L14: =IF(F14="","",F14-I14) -> 
B15: 2020-12-06 | C15: 44171 | I15: 0:00 | L15: =IF(F15="","",F15-I15) -> 
B16: 2020-12-07 | C16: 44172 | I16: 0:00
B17: 2020-12-08 | C17: 44173 | I17: 0:00
B18: 2020-12-09 | C18: 44174 | I18: 0:00
B19: 2020-12-10 | C19: 44175 | I19: =IF(H19="","0:00",IF(H19-G19<8/24,H19-G19,H19-G19-1/24)) -> 0:00 | K19: =IF(F19="","",IF(H19="",E19-$E$5,IF(H19<=E19,"0:00",IF(H19>$E$5,H19-$E$5))+IF(G19>=$E$5,G19-$E$5,"0:00"))) -> 
B20: 2020-12-11 | C20: 44176 | I20: 0:00 | K20: =IF(F20="","",IF(H20="",E20-$E$5,IF(H20<=E20,"0:00",IF(H20>$E$5,H20-$E$5))+IF(G20>=$E$5,G20-$E$5,"0:00"))) ->  | O20: ○
B21: 2020-12-12 | C21: 44177 | I21: 0:00 | L21: =IF(F21="","",F21-I21) -> 
B22: 2020-12-13 | C22: 44178 | I22: 0:00 | L22: =IF(F22="","",F22-I22) -> 
B23: 2020-12-14 | C23: 44179 | I23: 0:00
B24: 2020-12-15 | C24: 44180 | I24: 0:00
B25: 2020-12-16 | C25: 44181 | I25: 0:00 | L25: =IF(J25="","",J25+K25) -> 
B26: =B25+1 -> 2020-12-17 | C26: 44182 | I26: 0:00
B27: 2020-12-18 | C27: 44183 | I27: 0:00 | O27: ○
B28: 2020-12-19 | C28: 44184 | I28: 0:00 | L28: =IF(F28="","",F28-I28) -> 
B29: 2020-12-20 | C29: 44185 | I29: 0:00 | L29: =IF(F29="","",F29-I29) -> 
B30: 2020-12-21 | C30: 44186 | I30: 0:00 | L30: =IF(J30="","",J30+K30) -> 
B31: 2020-12-22 | C31: 44187 | I31: 0:00
B32: 2020-12-23 | C32: 44188 | I32: 0:00
B33: 2020-12-24 | C33: 44189 | I33: 0:00 | L33: =IF(J33="","",J33+K33) -> 
B34: 2020-12-25 | C34: 44190 | I34: 0:00 | O34: ○
B35: 2020-12-26 | C35: 44191 | I35: 0:00 | L35: =IF(F35="","",F35-I35) -> 
B36: 2020-12-27 | C36: 44192 | I36: 0:00 | L36: =IF(F36="","",F36-I36) -> 
B37: 2020-12-28 | C37: 44193 | I37: 0:00 | L37: =IF(J37="","",J37+K37) -> 
B38: 2020-12-29 | C38: 44194 | I38: 0:00 | L38: =IF(F38="","",F38-I38) -> 
B39: =B38+1 -> 2020-12-30 | C39: =B39 -> 44195 | I39: =IF(H39="","0:00",IF(H39-G39<8/24,H39-G39,H39-G39-1/24)) -> 0:00 | L39: =IF(F39="","",F39-I39) -> 
B40: =B39+1 -> 2020-12-31 | C40: =B40 -> 44196 | I40: =IF(H40="","0:00",IF(H40-G40<8/24,H40-G40,H40-G40-1/24)) -> 0:00 | L40: =IF(F40="","",F40-I40) -> 
B41: 勤務時間数合計（A）（8時間以上で休憩1時間差引済） | F41: =IF(SUM(F10:F40)=0,"",SUM(F10:F40)) ->  | G41: 院外・救急従事時間 | I41: =IF(SUM(I10:I40)=0,"",SUM(I10:I40)) ->  | L41: =IF(SUM(L10:L40)=0,"",SUM(L10:L40)) ->  | M41: 超勤手当該当時間数
B42: 既定勤務時間（B）（7時間45分×平日数） | F42: =7.75/24*20 -> 6.458333333
B43: 超過勤務時間数（A－B） | F43: =IF(F41="","",F41-F42) -> 
B45: ※時間は24時間表記（退勤1：00は25：00と表記）で入力してください。
B46: ※翌月1日 朝9時まで に初期研修センターへ提出すること。
B47: ※研修科指導医確認欄には、必ず指導医のご署名をいただいてください。

Sheet 1月
B1: 勤務状況報告書
B3: 2021-01-01 | N3: 研修科名：
B4: 規定の 出退勤時間 | D4: 出勤 | E4: 退勤
D5: 08:30:00 | E5: 17:15:00 | G5: 左記出退勤時間の内 院外・救急研修に 従事した時間 | I5: 院外・救急 勤務時間数 ※8時間以上で 休憩1時間差引済 | N5: 氏 名：
B8: 日 | C8: 曜日 | D8: 出勤・退勤時間 | F8: 勤務時間数 ※8時間以上で 休憩1時間差引済 | L8: 院外・救急 時間を除いた 残業時間 | M8: 主な超過勤務内容 (該当する業務に◯を記入)
D9: 出勤 | E9: 退勤 | G9: 出勤 | H9: 退勤 | J9: 前残業 | K9: 後残業 | M9: 病棟業務 | N9: カンファレンス | O9: レポート作成 | P9: その他の業務内容
B10: =B3 -> 2021-01-01 | C10: =B10 -> 44197 | F10: =IF(E10="","",IF(E10-D10<8/24,E10-D10,E10-D10-1/24)) ->  | I10: =IF(H10="","0:00",IF(H10-G10<8/24,H10-G10,H10-G10-1/24)) -> 0:00 | J10: =IF(F10="","",IF(G10="",$D$5-D10,IF(G10<=$D$5,G10-D10,IF(G10>$D$5,$D$5-D10,IF(D10>$D$5,$D$5-D10))))) ->  | K10: =IF(F10="","",IF(H10="",E10-$E$5,IF(H10<=E10,"0:00",IF(H10>$E$5,H10-$E$5))+IF(G10>=$E$5,G10-$E$5,"0:00"))) ->  | L10: =IF(F10="","",F10-I10) -> 
B11: =B10+1 -> 2021-01-02 | C11: =B11 -> 44198 | F11: =IF(E11="","",IF(E11-D11<8/24,E11-D11,E11-D11-1/24)) ->  | I11: =IF(H11="","0:00",IF(H11-G11<8/24,H11-G11,H11-G11-1/24)) -> 0:00 | L11: =IF(F11="","",F11-I11) -> 
B12: =B11+1 -> 2021-01-03 | C12: 44199 | I12: =IF(H12="","0:00",IF(H12-G12<8/24,H12-G12,H12-G12-1/24)) -> 0:00 | L12: =IF(F12="","",F12-I12) -> 
B13: 2021-01-04 | C13: 44200 | I13: =IF(H13="","0:00",IF(H13-G13<8/24,H13-G13,H13-G13-1/24)) -> 0:00 | J13: =IF(F13="","",IF(G13="",$D$5-D13,IF(G13<=$D$5,G13-D13,IF(G13>$D$5,$D$5-D13,IF(D13>$D$5,$D$5-D13))))) ->  | L13: =IF(J13="","",J13+K13) -> 
B14: 2021-01-05 | C14: 44201 | I14: =IF(H14="","0:00",IF(H14-G14<8/24,H14-G14,H14-G14-1/24)) -> 0:00
B15: 2021-01-06 | C15: 44202 | I15: 0:00
B16: 2021-01-07 | C16: 44203 | I16: 0:00
B17: 2021-01-08 | C17: 44204 | I17: 0:00
B18: 2021-01-09 | C18: 44205 | I18: 0:00 | L18: =IF(F18="","",F18-I18) -> 
B19: 2021-01-10 | C19: 44206 | I19: =IF(H19="","0:00",IF(H19-G19<8/24,H19-G19,H19-G19-1/24)) -> 0:00 | K19: =IF(F19="","",IF(H19="",E19-$E$5,IF(H19<=E19,"0:00",IF(H19>$E$5,H19-$E$5))+IF(G19>=$E$5,G19-$E$5,"0:00"))) ->  | L19: =IF(F19="","",F19-I19) -> 
B20: 2021-01-11 | C20: 44207 | I20: 0:00 | K20: =IF(F20="","",IF(H20="",E20-$E$5,IF(H20<=E20,"0:00",IF(H20>$E$5,H20-$E$5))+IF(G20>=$E$5,G20-$E$5,"0:00"))) ->  | L20: =IF(F20="","",F20-I20) ->  | O20: ○
B21: 2021-01-12 | C21: 44208 | I21: 0:00
B22: 2021-01-13 | C22: 44209 | I22: 0:00
B23: 2021-01-14 | C23: 44210 | I23: 0:00
B24: 2021-01-15 | C24: 44211 | I24: 0:00
B25: 2021-01-16 | C25: 44212 | I25: 0:00 | L25: =IF(F25="","",F25-I25) -> 
B26: =B25+1 -> 2021-01-17 | C26: 44213 | I26: 0:00 | L26: =IF(F26="","",F26-I26) -> 
B27: 2021-01-18 | C27: 44214 | I27: 0:00 | O27: ○
B28: 2021-01-19 | C28: 44215 | I28: 0:00
B29: 2021-01-20 | C29: 44216 | I29: 0:00
B30: 2021-01-21 | C30: 44217 | I30: 0:00 | L30: =IF(J30="","",J30+K30) -> 
B31: 2021-01-22 | C31: 44218 | I31: 0:00
B32: 2021-01-23 | C32: 44219 | I32: 0:00 | L32: =IF(F32="","",F32-I32) -> 
B33: 2021-01-24 | C33: 44220 | I33: 0:00 | L33: =IF(F33="","",F33-I33) -> 
B34: 2021-01-25 | C34: 44221 | I34: 0:00 | L34: =IF(J34="","",J34+K34) ->  | O34: ○
B35: 2021-01-26 | C35: 44222 | I35: 0:00
B36: 2021-01-27 | C36: 44223 | I36: 0:00
B37: 2021-01-28 | C37: 44224 | I37: 0:00 | L37: =IF(J37="","",J37+K37) -> 
B38: 2021-01-29 | C38: 44225 | I38: 0:00
B39: =B38+1 -> 2021-01-30 | C39: =B39 -> 44226 | I39: =IF(H39="","0:00",IF(H39-G39<8/24,H39-G39,H39-G39-1/24)) -> 0:00 | L39: =IF(F39="","",F39-I39) -> 
B40: =B39+1 -> 2021-01-31 | C40: =B40 -> 44227 | I40: =IF(H40="","0:00",IF(H40-G40<8/24,H40-G40,H40-G40-1/24)) -> 0:00 | L40: =IF(F40="","",F40-I40) -> 
B41: 勤務時間数合計（A）（8時間以上で休憩1時間差引済） | F41: =IF(SUM(F10:F40)=0,"",SUM(F10:F40)) ->  | G41: 院外・救急従事時間 | I41: =IF(SUM(I10:I40)=0,"",SUM(I10:I40)) ->  | L41: =IF(SUM(L10:L40)=0,"",SUM(L10:L40)) ->  | M41: 超勤手当該当時間数
B42: 既定勤務時間（B）（7時間45分×平日数） | F42: =7.75/24*19 -> 6.135416667
B43: 超過勤務時間数（A－B） | F43: =IF(F41="","",F41-F42) -> 
B45: ※時間は24時間表記（退勤1：00は25：00と表記）で入力してください。
B46: ※翌月1日 朝9時まで に初期研修センターへ提出すること。
B47: ※研修科指導医確認欄には、必ず指導医のご署名をいただいてください。

Sheet 2月
B1: 勤務状況報告書
B3: 2021-02-01 | N3: 研修科名：
B4: 規定の 出退勤時間 | D4: 出勤 | E4: 退勤
D5: 08:30:00 | E5: 17:15:00 | G5: 左記出退勤時間の内 院外・救急研修に 従事した時間 | I5: 院外・救急 勤務時間数 ※8時間以上で 休憩1時間差引済 | N5: 氏 名：
B8: 日 | C8: 曜日 | D8: 出勤・退勤時間 | F8: 勤務時間数 ※8時間以上で 休憩1時間差引済 | L8: 院外・救急 時間を除いた 残業時間 | M8: 主な超過勤務内容 (該当する業務に◯を記入)
D9: 出勤 | E9: 退勤 | G9: 出勤 | H9: 退勤 | J9: 前残業 | K9: 後残業 | M9: 病棟業務 | N9: カンファレンス | O9: レポート作成 | P9: その他の業務内容
B10: =B3 -> 2021-02-01 | C10: =B10 -> 44228 | F10: =IF(E10="","",IF(E10-D10<8/24,E10-D10,E10-D10-1/24)) ->  | I10: =IF(H10="","0:00",IF(H10-G10<8/24,H10-G10,H10-G10-1/24)) -> 0:00 | J10: =IF(F10="","",IF(G10="",$D$5-D10,IF(G10<=$D$5,G10-D10,IF(G10>$D$5,$D$5-D10,IF(D10>$D$5,$D$5-D10))))) ->  | K10: =IF(F10="","",IF(H10="",E10-$E$5,IF(H10<=E10,"0:00",IF(H10>$E$5,H10-$E$5))+IF(G10>=$E$5,G10-$E$5,"0:00"))) ->  | L10: =IF(J10="","",J10+K10) -> 
B11: =B10+1 -> 2021-02-02 | C11: =B11 -> 44229 | F11: =IF(E11="","",IF(E11-D11<8/24,E11-D11,E11-D11-1/24)) ->  | I11: =IF(H11="","0:00",IF(H11-G11<8/24,H11-G11,H11-G11-1/24)) -> 0:00 | L11: =IF(J11="","",J11+K11) -> 
B12: =B11+1 -> 2021-02-03 | C12: 44230 | I12: =IF(H12="","0:00",IF(H12-G12<8/24,H12-G12,H12-G12-1/24)) -> 0:00
B13: 2021-02-04 | C13: 44231 | I13: =IF(H13="","0:00",IF(H13-G13<8/24,H13-G13,H13-G13-1/24)) -> 0:00 | J13: =IF(F13="","",IF(G13="",$D$5-D13,IF(G13<=$D$5,G13-D13,IF(G13>$D$5,$D$5-D13,IF(D13>$D$5,$D$5-D13))))) -> 
B14: 2021-02-05 | C14: 44232 | I14: =IF(H14="","0:00",IF(H14-G14<8/24,H14-G14,H14-G14-1/24)) -> 0:00
B15: 2021-02-06 | C15: 44233 | I15: 0:00 | L15: =IF(F15="","",F15-I15) -> 
B16: 2021-02-07 | C16: 44234 | I16: 0:00 | L16: =IF(F16="","",F16-I16) -> 
B17: 2021-02-08 | C17: 44235 | I17: 0:00
B18: 2021-02-09 | C18: 44236 | I18: 0:00
B19: 2021-02-10 | C19: 44237 | I19: =IF(H19="","0:00",IF(H19-G19<8/24,H19-G19,H19-G19-1/24)) -> 0:00 | K19: =IF(F19="","",IF(H19="",E19-$E$5,IF(H19<=E19,"0:00",IF(H19>$E$5,H19-$E$5))+IF(G19>=$E$5,G19-$E$5,"0:00"))) -> 
B20: 2021-02-11 | C20: 44238 | I20: 0:00 | K20: =IF(F20="","",IF(H20="",E20-$E$5,IF(H20<=E20,"0:00",IF(H20>$E$5,H20-$E$5))+IF(G20>=$E$5,G20-$E$5,"0:00"))) ->  | O20: ○
B21: 2021-02-12 | C21: 44239 | I21: 0:00
B22: 2021-02-13 | C22: 44240 | I22: 0:00 | L22: =IF(F22="","",F22-I22) -> 
B23: 2021-02-14 | C23: 44241 | I23: 0:00 | L23: =IF(F23="","",F23-I23) -> 
B24: 2021-02-15 | C24: 44242 | I24: 0:00
B25: 2021-02-16 | C25: 44243 | I25: 0:00
B26: =B25+1 -> 2021-02-17 | C26: 44244 | I26: 0:00
B27: 2021-02-18 | C27: 44245 | I27: 0:00 | O27: ○
B28: 2021-02-19 | C28: 44246 | I28: 0:00
B29: 2021-02-20 | C29: 44247 | I29: 0:00 | L29: =IF(F29="","",F29-I29) -> 
B30: 2021-02-21 | C30: 44248 | I30: 0:00 | L30: =IF(F30="","",F30-I30) -> 
B31: 2021-02-22 | C31: 44249 | I31: 0:00
B32: 2021-02-23 | C32: 44250 | I32: 0:00
B33: 2021-02-24 | C33: 44251 | I33: 0:00
B34: 2021-02-25 | C34: 44252 | I34: 0:00 | O34: ○
B35: 2021-02-26 | C35: 44253 | I35: 0:00
B36: 2021-02-27 | C36: 44254 | I36: 0:00 | L36: =IF(F36="","",F36-I36) -> 
B37: 2021-02-28 | C37: 44255 | I37: 0:00 | L37: =IF(F37="","",F37-I37) -> 
B38: 2021-03-01 | C38: 44256 | I38: 0:00 | L38: =IF(J38="","",J38+K38) -> 
B39: =B38+1 -> 2021-03-02 | C39: =B39 -> 44257 | I39: =IF(H39="","0:00",IF(H39-G39<8/24,H39-G39,H39-G39-1/24)) -> 0:00 | L39: =IF(F39="","",F39-I39) -> 
B40: =B39+1 -> 2021-03-03 | C40: =B40 -> 44258 | I40: =IF(H40="","0:00",IF(H40-G40<8/24,H40-G40,H40-G40-1/24)) -> 0:00 | L40: =IF(F40="","",F40-I40) -> 
B41: 勤務時間数合計（A）（8時間以上で休憩1時間差引済） | F41: =IF(SUM(F10:F40)=0,"",SUM(F10:F40)) ->  | G41: 院外・救急従事時間 | I41: =IF(SUM(I10:I40)=0,"",SUM(I10:I40)) ->  | L41: =IF(SUM(L10:L40)=0,"",SUM(L10:L40)) ->  | M41: 超勤手当該当時間数
B42: 既定勤務時間（B）（7時間45分×平日数） | F42: =7.75/24*18 -> 5.8125
B43: 超過勤務時間数（A－B） | F43: =IF(F41="","",F41-F42) -> 
B45: ※時間は24時間表記（退勤1：00は25：00と表記）で入力してください。
B46: ※翌月1日 朝9時まで に初期研修センターへ提出すること。
B47: ※研修科指導医確認欄には、必ず指導医のご署名をいただいてください。

Sheet 3月
B1: 勤務状況報告書
B3: 2021-03-01 | N3: 研修科名：
B4: 規定の 出退勤時間 | D4: 出勤 | E4: 退勤
D5: 08:30:00 | E5: 17:15:00 | G5: 左記出退勤時間の内 院外・救急研修に 従事した時間 | I5: 院外・救急 勤務時間数 ※8時間以上で 休憩1時間差引済 | N5: 氏 名：
B8: 日 | C8: 曜日 | D8: 出勤・退勤時間 | F8: 勤務時間数 ※8時間以上で 休憩1時間差引済 | L8: 院外・救急 時間を除いた 残業時間 | M8: 主な超過勤務内容 (該当する業務に◯を記入)
D9: 出勤 | E9: 退勤 | G9: 出勤 | H9: 退勤 | J9: 前残業 | K9: 後残業 | M9: 病棟業務 | N9: カンファレンス | O9: レポート作成 | P9: その他の業務内容
B10: =B3 -> 2021-03-01 | C10: =B10 -> 44256 | F10: =IF(E10="","",IF(E10-D10<8/24,E10-D10,E10-D10-1/24)) ->  | I10: =IF(H10="","0:00",IF(H10-G10<8/24,H10-G10,H10-G10-1/24)) -> 0:00 | J10: =IF(F10="","",IF(G10="",$D$5-D10,IF(G10<=$D$5,G10-D10,IF(G10>$D$5,$D$5-D10,IF(D10>$D$5,$D$5-D10))))) ->  | K10: =IF(F10="","",IF(H10="",E10-$E$5,IF(H10<=E10,"0:00",IF(H10>$E$5,H10-$E$5))+IF(G10>=$E$5,G10-$E$5,"0:00"))) ->  | L10: =IF(J10="","",J10+K10) -> 
B11: =B10+1 -> 2021-03-02 | C11: =B11 -> 44257 | F11: =IF(E11="","",IF(E11-D11<8/24,E11-D11,E11-D11-1/24)) ->  | I11: =IF(H11="","0:00",IF(H11-G11<8/24,H11-G11,H11-G11-1/24)) -> 0:00 | L11: =IF(J11="","",J11+K11) -> 
B12: =B11+1 -> 2021-03-03 | C12: 44258 | I12: =IF(H12="","0:00",IF(H12-G12<8/24,H12-G12,H12-G12-1/24)) -> 0:00
B13: 2021-03-04 | C13: 44259 | I13: =IF(H13="","0:00",IF(H13-G13<8/24,H13-G13,H13-G13-1/24)) -> 0:00 | J13: =IF(F13="","",IF(G13="",$D$5-D13,IF(G13<=$D$5,G13-D13,IF(G13>$D$5,$D$5-D13,IF(D13>$D$5,$D$5-D13))))) -> 
B14: 2021-03-05 | C14: 44260 | I14: =IF(H14="","0:00",IF(H14-G14<8/24,H14-G14,H14-G14-1/24)) -> 0:00
B15: 2021-03-06 | C15: 44261 | I15: 0:00 | L15: =IF(F15="","",F15-I15) -> 
B16: 2021-03-07 | C16: 44262 | I16: 0:00 | L16: =IF(F16="","",F16-I16) -> 
B17: 2021-03-08 | C17: 44263 | I17: 0:00 | L17: =IF(J17="","",J17+K17) -> 
B18: 2021-03-09 | C18: 44264 | I18: 0:00
B19: 2021-03-10 | C19: 44265 | I19: =IF(H19="","0:00",IF(H19-G19<8/24,H19-G19,H19-G19-1/24)) -> 0:00 | K19: =IF(F19="","",IF(H19="",E19-$E$5,IF(H19<=E19,"0:00",IF(H19>$E$5,H19-$E$5))+IF(G19>=$E$5,G19-$E$5,"0:00"))) -> 
B20: 2021-03-11 | C20: 44266 | I20: 0:00 | K20: =IF(F20="","",IF(H20="",E20-$E$5,IF(H20<=E20,"0:00",IF(H20>$E$5,H20-$E$5))+IF(G20>=$E$5,G20-$E$5,"0:00"))) ->  | O20: ○
B21: 2021-03-12 | C21: 44267 | I21: 0:00
B22: 2021-03-13 | C22: 44268 | I22: 0:00 | L22: =IF(F22="","",F22-I22) -> 
B23: 2021-03-14 | C23: 44269 | I23: 0:00 | L23: =IF(F23="","",F23-I23) -> 
B24: 2021-03-15 | C24: 44270 | I24: 0:00 | L24: =IF(J24="","",J24+K24) -> 
B25: 2021-03-16 | C25: 44271 | I25: 0:00
B26: =B25+1 -> 2021-03-17 | C26: 44272 | I26: 0:00
B27: 2021-03-18 | C27: 44273 | I27: 0:00 | O27: ○
B28: 2021-03-19 | C28: 44274 | I28: 0:00
B29: 2021-03-20 | C29: 44275 | I29: 0:00 | L29: =IF(F29="","",F29-I29) -> 
B30: 2021-03-21 | C30: 44276 | I30: 0:00 | L30: =IF(F30="","",F30-I30) -> 
B31: 2021-03-22 | C31: 44277 | I31: 0:00 | L31: =IF(J31="","",J31+K31) -> 
B32: 2021-03-23 | C32: 44278 | I32: 0:00
B33: 2021-03-24 | C33: 44279 | I33: 0:00
B34: 2021-03-25 | C34: 44280 | I34: 0:00 | O34: ○
B35: 2021-03-26 | C35: 44281 | I35: 0:00 | L35: =IF(J35="","",J35+K35) -> 
B36: 2021-03-27 | C36: 44282 | I36: 0:00 | L36: =IF(F36="","",F36-I36) -> 
B37: 2021-03-28 | C37: 44283 | I37: 0:00 | L37: =IF(F37="","",F37-I37) -> 
B38: 2021-03-29 | C38: 44284 | I38: 0:00 | L38: =IF(J38="","",J38+K38) -> 
B39: =B38+1 -> 2021-03-30 | C39: =B39 -> 44285 | I39: =IF(H39="","0:00",IF(H39-G39<8/24,H39-G39,H39-G39-1/24)) -> 0:00
B40: =B39+1 -> 2021-03-31 | C40: =B40 -> 44286 | I40: =IF(H40="","0:00",IF(H40-G40<8/24,H40-G40,H40-G40-1/24)) -> 0:00 | L40: =IF(F40="","",F40-I40) -> 
B41: 勤務時間数合計（A）（8時間以上で休憩1時間差引済） | F41: =IF(SUM(F10:F40)=0,"",SUM(F10:F40)) ->  | G41: 院外・救急従事時間 | I41: =IF(SUM(I10:I40)=0,"",SUM(I10:I40)) ->  | L41: =IF(SUM(L10:L40)=0,"",SUM(L10:L40)) ->  | M41: 超勤手当該当時間数
B42: 既定勤務時間（B）（7時間45分×平日数） | F42: =7.75/24*23 -> 7.427083333
B43: 超過勤務時間数（A－B） | F43: =IF(F41="","",F41-F42) -> 
B45: ※時間は24時間表記（退勤1：00は25：00と表記）で入力してください。
B46: ※翌月1日 朝9時まで に初期研修センターへ提出すること。
B47: ※研修科指導医確認欄には、必ず指導医のご署名をいただいてください。

Sheet 関数コピー用
B1: 勤務状況報告書
B3: 2020-04-01 | N3: 研修科名： | P3: 消化器・肝臓内科（肝臓）
B4: 規定の 出退勤時間 | D4: 出勤 | E4: 退勤
D5: 08:30:00 | E5: 17:15:00 | G5: 左記出退勤時間の内 院外・救急研修に 従事した時間 | I5: 院外・救急 勤務時間数 ※8時間以上で 休憩1時間差引済 | N5: 氏 名： | P5: 臨床 太郎
B8: 日 | C8: 曜日 | D8: 出勤・退勤時間 | F8: 勤務時間数 ※8時間以上で 休憩1時間差引済 | L8: 院外・救急 時間を除いた 残業時間 | M8: 主な超過勤務内容 (該当する業務に◯を記入)
D9: 出勤 | E9: 退勤 | G9: 出勤 | H9: 退勤 | J9: 前残業 | K9: 後残業 | M9: 病棟業務 | N9: カンファレンス | O9: レポート作成 | P9: その他の業務内容
B10: =B3 -> 2020-04-01 | C10: =B10 -> 43922 | D10: 0.3333333333 | E10: 0.71875 | F10: =IF(E10="","",IF(E10-D10<8/24,E10-D10,E10-D10-1/24)) -> 0.34375 | I10: =IF(H10="","0:00",IF(H10-G10<8/24,H10-G10,H10-G10-1/24)) -> 0:00 | J10: =IF(F10="","",IF(G10="",$D$5-D10,IF(G10<=$D$5,G10-D10,IF(G10>$D$5,$D$5-D10,IF(D10>$D$5,$D$5-D10))))) -> 0.02083333333 | K10: =IF(F10="","",IF(H10="",E10-$E$5,IF(H10<=E10,"0:00",IF(H10>$E$5,H10-$E$5))+IF(G10>=$E$5,G10-$E$5,"0:00"))) -> 0 | L10: =IF(J10="","",J10+K10) -> 0.02083333333 | P10: オリエンテーション
B11: =B10+1 -> 2020-04-02 | C11: =B11 -> 43923 | D11: 0.3541666667 | E11: 0.75 | F11: =IF(E11="","",IF(E11-D11<8/24,E11-D11,E11-D11-1/24)) -> 0.3541666667 | I11: =IF(H11="","0:00",IF(H11-G11<8/24,H11-G11,H11-G11-1/24)) -> 0:00 | J11: 0 | K11: 0.03125 | L11: =IF(J11="","",J11+K11) -> 0.03125 | P11: オリエンテーション
B12: =B11+1 -> 2020-04-03 | C12: 43924 | D12: 0.3541666667 | E12: 0.71875 | F12: 0.3229166667 | I12: =IF(H12="","0:00",IF(H12-G12<8/24,H12-G12,H12-G12-1/24)) -> 0:00 | J12: 0 | K12: 0 | L12: =IF(J12="","",J12+K12) -> 0 | P12: オリエンテーション
B13: 2020-04-04 | C13: 43925 | D13: 0.375 | E13: 0.5416666667 | F13: 0.1666666667 | G13: 0.375 | H13: 0.5416666667 | I13: =IF(H13="","0:00",IF(H13-G13<8/24,H13-G13,H13-G13-1/24)) -> 0.1666666667 | J13: =IF(F13="","",IF(G13="",$D$5-D13,IF(G13<=$D$5,G13-D13,IF(G13>$D$5,$D$5-D13,IF(D13>$D$5,$D$5-D13))))) -> -0.02083333333 | K13: 0 | L13: =IF(F13="","",F13-I13) -> 0 | P13: オリエンテーション
B14: 2020-04-05 | C14: 43926 | I14: =IF(H14="","0:00",IF(H14-G14<8/24,H14-G14,H14-G14-1/24)) -> 0:00 | L14: =IF(F14="","",F14-I14) -> 
B15: 2020-04-06 | C15: 43927 | D15: 0.3541666667 | E15: 0.71875 | F15: 0.3229166667 | I15: 0:00 | J15: 0 | K15: 0 | L15: =IF(J15="","",J15+K15) -> 0 | P15: オリエンテーション
B16: 2020-04-07 | C16: 43928 | D16: 0.3333333333 | E16: 0.71875 | F16: 0.34375 | G16: 0.3402777778 | H16: 0.6666666667 | I16: 0.3263888889 | J16: 0.006944444444 | K16: 0 | L16: 0.006944444444 | P16: オリエンテーション
B17: 2020-04-08 | C17: 43929 | D17: 0.3333333333 | E17: 0.71875 | F17: 0.34375 | I17: 0:00 | J17: 0.02083333333 | K17: 0 | L17: 0.02083333333 | P17: オリエンテーション
B18: 2020-04-09 | C18: 43930 | D18: 0.3541666667 | E18: 0.75 | F18: 0.3541666667 | I18: 0:00 | J18: 0 | K18: 0.03125 | L18: 0.03125 | P18: オリエンテーション
B19: 2020-04-10 | C19: 43931 | D19: 0.3541666667 | E19: 0.71875 | F19: 0.3229166667 | G19: 0.3541666667 | H19: 0.5625 | I19: =IF(H19="","0:00",IF(H19-G19<8/24,H19-G19,H19-G19-1/24)) -> 0.2083333333 | J19: 0 | K19: =IF(F19="","",IF(H19="",E19-$E$5,IF(H19<=E19,"0:00",IF(H19>$E$5,H19-$E$5))+IF(G19>=$E$5,G19-$E$5,"0:00"))) -> 0 | L19: =IF(J19="","",J19+K19) -> 0 | P19: 4/4振替
B20: 2020-04-11 | C20: 43932 | I20: 0:00 | K20: =IF(F20="","",IF(H20="",E20-$E$5,IF(H20<=E20,"0:00",IF(H20>$E$5,H20-$E$5))+IF(G20>=$E$5,G20-$E$5,"0:00"))) ->  | L20: =IF(F20="","",F20-I20) ->  | O20: ○
B21: 2020-04-12 | C21: 43933 | I21: 0:00 | L21: =IF(F21="","",F21-I21) -> 
B22: 2020-04-13 | C22: 43934 | D22: 0.3541666667 | E22: 0.7291666667 | F22: 0.3333333333 | I22: 0:00 | J22: 0 | K22: 0.01041666667 | L22: =IF(J22="","",J22+K22) -> 0.01041666667 | M22: ○
B23: 2020-04-14 | C23: 43935 | D23: 0.3333333333 | E23: 0.7291666667 | F23: 0.3541666667 | I23: 0:00 | J23: 0.02083333333 | K23: 0.01041666667 | L23: 0.03125 | M23: ○
B24: 2020-04-15 | C24: 43936 | D24: 0.3333333333 | E24: 0.7291666667 | F24: 0.3541666667 | I24: 0:00 | J24: 0.02083333333 | K24: 0.01041666667 | L24: 0.03125 | M24: ○
B25: 2020-04-16 | C25: 43937 | D25: 0.3472222222 | E25: 0.7291666667 | F25: 0.3402777778 | I25: 0:00 | J25: 0.006944444444 | K25: 0.01041666667 | L25: 0.01736111111 | M25: ○
B26: =B25+1 -> 2020-04-17 | C26: 43938 | D26: 0.3333333333 | E26: 0.75 | F26: 0.375 | I26: 0:00 | J26: 0.02083333333 | K26: 0.03125 | L26: 0.05208333333 | N26: ○
B27: 2020-04-18 | C27: 43939 | I27: 0:00 | L27: =IF(F27="","",F27-I27) ->  | O27: ○
B28: 2020-04-19 | C28: 43940 | I28: 0:00 | L28: =IF(F28="","",F28-I28) -> 
B29: 2020-04-20 | C29: 43941 | D29: 0.3333333333 | E29: 0.7291666667 | F29: 0.3541666667 | I29: 0:00 | J29: 0.02083333333 | K29: 0.01041666667 | L29: =IF(J29="","",J29+K29) -> 0.03125 | M29: ○
B30: 2020-04-21 | C30: 43942 | D30: 0.3541666667 | E30: 0.71875 | F30: 0.3229166667 | I30: 0:00 | J30: 0 | K30: 0 | L30: 0
B31: 2020-04-22 | C31: 43943 | D31: 0.3541666667 | E31: 1.0625 | F31: 0.6666666667 | G31: 0.7916666667 | H31: 1.052083333 | I31: 0.2604166667 | J31: 0 | K31: 0.07291666667 | L31: 0.07291666667 | P31: 岩崎救急
B32: 2020-04-23 | C32: 43944 | D32: 0.3125 | E32: 0.7916666667 | F32: 0.4375 | G32: 0.3125 | H32: 0.75 | I32: 0.3958333333 | J32: 0 | K32: 0 | L32: 0
B33: 2020-04-24 | C33: 43945 | D33: 0.34375 | E33: 0.71875 | F33: 0.3333333333 | I33: 0:00 | J33: 0.01041666667 | K33: 0 | L33: 0.01041666667
B34: 2020-04-25 | C34: 43946 | I34: 0:00 | L34: =IF(F34="","",F34-I34) ->  | O34: ○
B35: 2020-04-26 | C35: 43947 | I35: 0:00 | L35: =IF(F35="","",F35-I35) -> 
B36: 2020-04-27 | C36: 43948 | D36: 0.34375 | E36: 0.71875 | F36: 0.3333333333 | I36: 0:00 | J36: 0.01041666667 | K36: 0 | L36: =IF(J36="","",J36+K36) -> 0.01041666667
B37: 2020-04-28 | C37: 43949 | D37: 0.3402777778 | E37: 0.7291666667 | F37: 0.3472222222 | I37: 0:00 | J37: 0.01388888889 | K37: 0.01041666667 | L37: =IF(J37="","",J37+K37) -> 0.02430555556
B38: 2020-04-29 | C38: 43950 | I38: 0:00 | L38: =IF(F38="","",F38-I38) -> 
B39: 2020-04-30 | C39: =B39 -> 43951 | D39: 0.3333333333 | E39: 0.71875 | F39: 0.34375 | I39: =IF(H39="","0:00",IF(H39-G39<8/24,H39-G39,H39-G39-1/24)) -> 0:00 | J39: 0.02083333333 | K39: 0 | L39: 0.02083333333
I40: =IF(H40="","0:00",IF(H40-G40<8/24,H40-G40,H40-G40-1/24)) -> 0:00
B41: 勤務時間数合計（A）（8時間以上で休憩1時間差引済） | F41: =IF(SUM(F10:F40)=0,"",SUM(F10:F40)) -> 7.770833333 | G41: 院外・救急従事時間 | I41: =IF(SUM(I10:I40)=0,"",SUM(I10:I40)) -> 1.357638889 | L41: =IF(SUM(L10:L40)=0,"",SUM(L10:L40)) -> 0.4236111111 | M41: 超勤手当該当時間数
B42: 既定勤務時間（B）（7時間45分×平日数） | F42: =7.75/24*21 -> 6.78125
B43: 超過勤務時間数（A－B） | F43: =IF(F41="","",F41-F42) -> 0.9895833333
B45: ※時間は24時間表記（退勤1：00は25：00と表記）で入力してください。
B46: ※翌月1日 朝9時まで に初期研修センターへ提出すること。
B47: ※研修科指導医確認欄には、必ず指導医のご署名をいただいてください。
L51: 「救急・院外を除いた残業時間」の欄にコピペする
K52: 平日の場合→ | L52: =IF(J52="","",J52+K52) -> 
K53: 休日の場合→ | L53: =IF(F53="","",F53-I53) -> 
